﻿Body Name,Supp ID,,Supplier Name,Service Area Category,Supp Grp,Period,Invoice Date,TT,Unique Invoice Reference,,Inv Amount,Account,Expenditure Description,Cost C,Cost Centre Name,Posted Amount
Nottinghamshire Fire and Rescue Service,101980,Hays Specialist Recruitment Limited,Hays Specialist Recruitment Limited,Management & Support Services,1,202202,14/04/2021,P6,9095281,-944.1,944.1,1005,Admin Agency Staff,2086,Procurement,786.75
Nottinghamshire Fire and Rescue Service,101980,Hays Specialist Recruitment Limited,Hays Specialist Recruitment Limited,Management & Support Services,1,202202,29/04/2021,P6,9095290,-669.13,669.13,1005,Admin Agency Staff,2087,Estates Department (Previously Premises),557.61
Nottinghamshire Fire and Rescue Service,101980,Hays Specialist Recruitment Limited,Hays Specialist Recruitment Limited,Management & Support Services,1,202202,19/04/2021,P6,9095325,-533.5,533.5,1005,Admin Agency Staff,2087,Estates Department (Previously Premises),444.58
Nottinghamshire Fire and Rescue Service,103371,Nottinghamshire Healthcare NHS Trust,Nottinghamshire Healthcare NHS Trust,Management & Support Services,5,202202,28/04/2021,P6,9095380,-4198.24,4198.24,1005,Admin Agency Staff,2068,Prevention,4198.24
Nottinghamshire Fire and Rescue Service,101980,Hays Specialist Recruitment Limited,Hays Specialist Recruitment Limited,Management & Support Services,1,202202,28/04/2021,P6,9095453,-944.1,944.1,1005,Admin Agency Staff,2086,Procurement,786.75
Nottinghamshire Fire and Rescue Service,101980,Hays Specialist Recruitment Limited,Hays Specialist Recruitment Limited,Management & Support Services,1,202202,13/05/2021,P6,9095482,-931.51,931.51,1005,Admin Agency Staff,2087,Estates Department (Previously Premises),776.26
Nottinghamshire Fire and Rescue Service,101980,Hays Specialist Recruitment Limited,Hays Specialist Recruitment Limited,Management & Support Services,1,202202,21/04/2021,P6,9095540,-944.1,944.1,1005,Admin Agency Staff,2086,Procurement,786.75
Nottinghamshire Fire and Rescue Service,104090,Nottinghamshire Healthcare NHS FDN Trust,Nottinghamshire Healthcare NHS FDN Trust,Management & Support Services,5,202202,25/02/2021,P6,9095559,-4228.56,4228.56,1005,Admin Agency Staff,2068,Prevention,4228.56
Nottinghamshire Fire and Rescue Service,101980,Hays Specialist Recruitment Limited,Hays Specialist Recruitment Limited,Management & Support Services,1,202202,13/05/2021,P6,9095564,-931.51,931.51,1005,Admin Agency Staff,2086,Procurement,776.26
Nottinghamshire Fire and Rescue Service,101980,Hays Specialist Recruitment Limited,Hays Specialist Recruitment Limited,Management & Support Services,1,202202,07/05/2021,P6,9095632,-379.78,379.78,1005,Admin Agency Staff,2087,Estates Department (Previously Premises),316.48
Nottinghamshire Fire and Rescue Service,101980,Hays Specialist Recruitment Limited,Hays Specialist Recruitment Limited,Management & Support Services,1,202202,20/05/2021,P6,9095684,-931.51,931.51,1005,Admin Agency Staff,2086,Procurement,776.26
Nottinghamshire Fire and Rescue Service,101893,Lincolnshire County Council,Lincolnshire County Council,Operational Responses,4,202202,13/04/2021,P6,9095426,-19773.03,19773.03,1201,Operational Pay,2005,Fire Control,101.25
Nottinghamshire Fire and Rescue Service,101893,Lincolnshire County Council,Lincolnshire County Council,Operational Responses,4,202202,13/04/2021,P6,9095426,-19773.03,19773.03,1201,Operational Pay,2005,Fire Control,15189
Nottinghamshire Fire and Rescue Service,101893,Lincolnshire County Council,Lincolnshire County Council,Operational Responses,4,202202,13/04/2021,P6,9095426,-19773.03,19773.03,1208,Operational NI,2005,Fire Control,1806.99
Nottinghamshire Fire and Rescue Service,101893,Lincolnshire County Council,Lincolnshire County Council,Operational Responses,4,202202,13/04/2021,P6,9095426,-19773.03,19773.03,1209,Operational Superannuation,2005,Fire Control,2675.79
Nottinghamshire Fire and Rescue Service,103256,Red One Limited,Red One Limited,Management & Support Services,5,202202,27/04/2021,P6,9095284,-10656,10656,1801,Training,2059,Corporate Training,2220
Nottinghamshire Fire and Rescue Service,103256,Red One Limited,Red One Limited,Management & Support Services,5,202202,27/04/2021,P6,9095284,-10656,10656,1801,Training,2059,Corporate Training,4440
Nottinghamshire Fire and Rescue Service,104017,K Lamb Associates Limited,K Lamb Associates Limited,Management & Support Services,5,202202,06/05/2021,P6,9095434,-4608,4608,1801,Training,2059,Corporate Training,3840
Nottinghamshire Fire and Rescue Service,103378,R3 Safety & Rescue Limited,R3 Safety & Rescue Limited,Management & Support Services,5,202202,12/05/2021,P6,9095460,-2070,2070,1801,Training,2059,Corporate Training,1725
Nottinghamshire Fire and Rescue Service,103277,Actorshop Training Associates,Actorshop Training Associates,Management & Support Services,5,202202,06/05/2021,P6,9095530,-600,600,1801,Training,2054,Equalities Team,600
Nottinghamshire Fire and Rescue Service,104097,In Professional Development,In Professional Development,Management & Support Services,5,202202,25/02/2021,P6,9095552,-714,714,1801,Training,2059,Corporate Training,595
Nottinghamshire Fire and Rescue Service,100778,Fire Service College Ltd,Fire Service College Ltd,"Statutory Inspection, Certification & Enforcement",4,202202,14/05/2021,P6,9095581,-1920,1920,1801,Training,2021,Fire Protection,1600
Nottinghamshire Fire and Rescue Service,103080,Rescue 3 Europe Limited,Rescue 3 Europe Limited,Management & Support Services,5,202202,25/05/2021,P6,9095762,-1428,1428,1801,Training,2059,Corporate Training,1190
Nottinghamshire Fire and Rescue Service,103923,Bupa UK Insurance Services,Bupa UK Insurance Services,Management & Support Services,5,202202,28/04/2021,P6,9095419,-3338.43,3338.43,1860,Employee Benefits Schemes,2049,Professional Support,3338.43
Nottinghamshire Fire and Rescue Service,102280,Amptron Electrical Services,Amptron Electrical Services,Operational Responses,1,202202,28/02/2021,P6,9095295,-3316.24,3316.24,2000,Buildings Repairs and Maintenance - Reactive,1019,West Bridgford,2763.53
Nottinghamshire Fire and Rescue Service,100113,PPL PRS Ltd,PPL PRS Ltd,Management & Support Services,1,202202,25/02/2021,P6,9095296,-1228.92,1228.92,2000,Buildings Repairs and Maintenance - Reactive,1035,Headquarters,1024.1
Nottinghamshire Fire and Rescue Service,102280,Amptron Electrical Services,Amptron Electrical Services,Operational Responses,1,202202,31/03/2021,P6,9095421,-3743.61,3743.61,2000,Buildings Repairs and Maintenance - Reactive,1008,Worksop,274.87
Nottinghamshire Fire and Rescue Service,102280,Amptron Electrical Services,Amptron Electrical Services,Operational Responses,1,202202,31/03/2021,P6,9095421,-3743.61,3743.61,2000,Buildings Repairs and Maintenance - Reactive,1025,Hucknall,806.35
Nottinghamshire Fire and Rescue Service,102280,Amptron Electrical Services,Amptron Electrical Services,Operational Responses,1,202202,31/03/2021,P6,9095421,-3743.61,3743.61,2000,Buildings Repairs and Maintenance - Reactive,1026,Arnold,371.89
Nottinghamshire Fire and Rescue Service,102280,Amptron Electrical Services,Amptron Electrical Services,Operational Responses,1,202202,31/03/2021,P6,9095421,-3743.61,3743.61,2000,Buildings Repairs and Maintenance - Reactive,1027,Carlton,1165.61
Nottinghamshire Fire and Rescue Service,102280,Amptron Electrical Services,Amptron Electrical Services,Management & Support Services,1,202202,31/03/2021,P6,9095421,-3743.61,3743.61,2000,Buildings Repairs and Maintenance - Reactive,1030,Service Development Centre,351.63
Nottinghamshire Fire and Rescue Service,102280,Amptron Electrical Services,Amptron Electrical Services,Management & Support Services,1,202202,31/03/2021,P6,9095421,-3743.61,3743.61,2000,Buildings Repairs and Maintenance - Reactive,1035,Headquarters,149.33
Nottinghamshire Fire and Rescue Service,102280,Amptron Electrical Services,Amptron Electrical Services,Operational Responses,1,202202,31/03/2021,P6,9095422,-944.53,944.53,2000,Buildings Repairs and Maintenance - Reactive,1029,Highfields Station,693.61
Nottinghamshire Fire and Rescue Service,102280,Amptron Electrical Services,Amptron Electrical Services,Management & Support Services,1,202202,31/03/2021,P6,9095422,-944.53,944.53,2000,Buildings Repairs and Maintenance - Reactive,1030,Service Development Centre,93.5
Nottinghamshire Fire and Rescue Service,102280,Amptron Electrical Services,Amptron Electrical Services,Operational Responses,1,202202,31/03/2021,P6,9095423,-5169.18,5169.18,2000,Buildings Repairs and Maintenance - Reactive,1001,Mansfield,4070
Nottinghamshire Fire and Rescue Service,102280,Amptron Electrical Services,Amptron Electrical Services,Operational Responses,1,202202,31/03/2021,P6,9095423,-5169.18,5169.18,2000,Buildings Repairs and Maintenance - Reactive,1029,Highfields Station,237.65
Nottinghamshire Fire and Rescue Service,102280,Amptron Electrical Services,Amptron Electrical Services,Operational Responses,1,202202,31/03/2021,P6,9095448,-3927.87,3927.87,2000,Buildings Repairs and Maintenance - Reactive,1005,Ashfield,271.87
Nottinghamshire Fire and Rescue Service,102280,Amptron Electrical Services,Amptron Electrical Services,Operational Responses,1,202202,31/03/2021,P6,9095448,-3927.87,3927.87,2000,Buildings Repairs and Maintenance - Reactive,1011,Misterton,290.49
Nottinghamshire Fire and Rescue Service,102280,Amptron Electrical Services,Amptron Electrical Services,Operational Responses,1,202202,31/03/2021,P6,9095448,-3927.87,3927.87,2000,Buildings Repairs and Maintenance - Reactive,1016,Newark,543.77
Nottinghamshire Fire and Rescue Service,102280,Amptron Electrical Services,Amptron Electrical Services,Operational Responses,1,202202,31/03/2021,P6,9095448,-3927.87,3927.87,2000,Buildings Repairs and Maintenance - Reactive,1019,West Bridgford,308.05
Nottinghamshire Fire and Rescue Service,102280,Amptron Electrical Services,Amptron Electrical Services,Operational Responses,1,202202,31/03/2021,P6,9095448,-3927.87,3927.87,2000,Buildings Repairs and Maintenance - Reactive,1028,East Leake,1040.68
Nottinghamshire Fire and Rescue Service,102280,Amptron Electrical Services,Amptron Electrical Services,Operational Responses,1,202202,31/03/2021,P6,9095448,-3927.87,3927.87,2000,Buildings Repairs and Maintenance - Reactive,1029,Highfields Station,105.74
Nottinghamshire Fire and Rescue Service,102280,Amptron Electrical Services,Amptron Electrical Services,Management & Support Services,1,202202,31/03/2021,P6,9095448,-3927.87,3927.87,2000,Buildings Repairs and Maintenance - Reactive,1030,Service Development Centre,712.62
Nottinghamshire Fire and Rescue Service,102280,Amptron Electrical Services,Amptron Electrical Services,Management & Support Services,1,202202,31/03/2021,P6,9095488,-311.13,311.13,2000,Buildings Repairs and Maintenance - Reactive,1030,Service Development Centre,113.98
Nottinghamshire Fire and Rescue Service,102280,Amptron Electrical Services,Amptron Electrical Services,Management & Support Services,1,202202,31/03/2021,P6,9095488,-311.13,311.13,2000,Buildings Repairs and Maintenance - Reactive,2086,Procurement,145.29
Nottinghamshire Fire and Rescue Service,102280,Amptron Electrical Services,Amptron Electrical Services,Operational Responses,1,202202,31/03/2021,P6,9095498,-13364.53,13364.53,2000,Buildings Repairs and Maintenance - Reactive,1002,Blidworth,4334.44
Nottinghamshire Fire and Rescue Service,102280,Amptron Electrical Services,Amptron Electrical Services,Operational Responses,1,202202,31/03/2021,P6,9095498,-13364.53,13364.53,2000,Buildings Repairs and Maintenance - Reactive,1008,Worksop,6802.67
Nottinghamshire Fire and Rescue Service,102280,Amptron Electrical Services,Amptron Electrical Services,Operational Responses,1,202202,31/03/2021,P6,9095499,-10393.39,10393.39,2000,Buildings Repairs and Maintenance - Reactive,1001,Mansfield,127.87
Nottinghamshire Fire and Rescue Service,102280,Amptron Electrical Services,Amptron Electrical Services,Operational Responses,1,202202,31/03/2021,P6,9095499,-10393.39,10393.39,2000,Buildings Repairs and Maintenance - Reactive,1002,Blidworth,96.68
Nottinghamshire Fire and Rescue Service,102280,Amptron Electrical Services,Amptron Electrical Services,Operational Responses,1,202202,31/03/2021,P6,9095499,-10393.39,10393.39,2000,Buildings Repairs and Maintenance - Reactive,1007,Warsop,99
Nottinghamshire Fire and Rescue Service,102280,Amptron Electrical Services,Amptron Electrical Services,Operational Responses,1,202202,31/03/2021,P6,9095499,-10393.39,10393.39,2000,Buildings Repairs and Maintenance - Reactive,1010,Harworth,199.2
Nottinghamshire Fire and Rescue Service,102280,Amptron Electrical Services,Amptron Electrical Services,Operational Responses,1,202202,31/03/2021,P6,9095499,-10393.39,10393.39,2000,Buildings Repairs and Maintenance - Reactive,1011,Misterton,230.78
Nottinghamshire Fire and Rescue Service,102280,Amptron Electrical Services,Amptron Electrical Services,Operational Responses,1,202202,31/03/2021,P6,9095499,-10393.39,10393.39,2000,Buildings Repairs and Maintenance - Reactive,1013,Tuxford,1127.5
Nottinghamshire Fire and Rescue Service,102280,Amptron Electrical Services,Amptron Electrical Services,Operational Responses,1,202202,31/03/2021,P6,9095499,-10393.39,10393.39,2000,Buildings Repairs and Maintenance - Reactive,1014,Southwell,77.47
Nottinghamshire Fire and Rescue Service,102280,Amptron Electrical Services,Amptron Electrical Services,Operational Responses,1,202202,31/03/2021,P6,9095499,-10393.39,10393.39,2000,Buildings Repairs and Maintenance - Reactive,1020,Stockhill,4077.39
Nottinghamshire Fire and Rescue Service,102280,Amptron Electrical Services,Amptron Electrical Services,Operational Responses,1,202202,31/03/2021,P6,9095499,-10393.39,10393.39,2000,Buildings Repairs and Maintenance - Reactive,1024,Eastwood,394.23
Nottinghamshire Fire and Rescue Service,102280,Amptron Electrical Services,Amptron Electrical Services,Operational Responses,1,202202,31/03/2021,P6,9095499,-10393.39,10393.39,2000,Buildings Repairs and Maintenance - Reactive,1026,Arnold,141.03
Nottinghamshire Fire and Rescue Service,102280,Amptron Electrical Services,Amptron Electrical Services,Management & Support Services,1,202202,31/03/2021,P6,9095499,-10393.39,10393.39,2000,Buildings Repairs and Maintenance - Reactive,1030,Service Development Centre,2090
Nottinghamshire Fire and Rescue Service,102280,Amptron Electrical Services,Amptron Electrical Services,Operational Responses,1,202202,31/03/2021,P6,9095507,-1620.13,1620.13,2000,Buildings Repairs and Maintenance - Reactive,1005,Ashfield,78.56
Nottinghamshire Fire and Rescue Service,102280,Amptron Electrical Services,Amptron Electrical Services,Management & Support Services,1,202202,31/03/2021,P6,9095507,-1620.13,1620.13,2000,Buildings Repairs and Maintenance - Reactive,1030,Service Development Centre,1271.55
Nottinghamshire Fire and Rescue Service,101512,Frank Key Group (Nottingham) Ltd,Frank Key Group (Nottingham) Ltd,Operational Responses,1,202202,06/05/2021,P6,9095588,-252,252,2000,Buildings Repairs and Maintenance - Reactive,1029,Highfields Station,210
Nottinghamshire Fire and Rescue Service,102280,Amptron Electrical Services,Amptron Electrical Services,Operational Responses,1,202202,31/03/2021,P6,9095591,-6236.64,6236.64,2000,Buildings Repairs and Maintenance - Reactive,1001,Mansfield,434.78
Nottinghamshire Fire and Rescue Service,102280,Amptron Electrical Services,Amptron Electrical Services,Operational Responses,1,202202,31/03/2021,P6,9095591,-6236.64,6236.64,2000,Buildings Repairs and Maintenance - Reactive,1003,London Road,409.89
Nottinghamshire Fire and Rescue Service,102280,Amptron Electrical Services,Amptron Electrical Services,Operational Responses,1,202202,31/03/2021,P6,9095591,-6236.64,6236.64,2000,Buildings Repairs and Maintenance - Reactive,1005,Ashfield,254.21
Nottinghamshire Fire and Rescue Service,102280,Amptron Electrical Services,Amptron Electrical Services,Operational Responses,1,202202,31/03/2021,P6,9095591,-6236.64,6236.64,2000,Buildings Repairs and Maintenance - Reactive,1006,Edwinstowe,93.55
Nottinghamshire Fire and Rescue Service,102280,Amptron Electrical Services,Amptron Electrical Services,Operational Responses,1,202202,31/03/2021,P6,9095591,-6236.64,6236.64,2000,Buildings Repairs and Maintenance - Reactive,1007,Warsop,92.96
Nottinghamshire Fire and Rescue Service,102280,Amptron Electrical Services,Amptron Electrical Services,Operational Responses,1,202202,31/03/2021,P6,9095591,-6236.64,6236.64,2000,Buildings Repairs and Maintenance - Reactive,1008,Worksop,322.16
Nottinghamshire Fire and Rescue Service,102280,Amptron Electrical Services,Amptron Electrical Services,Operational Responses,1,202202,31/03/2021,P6,9095591,-6236.64,6236.64,2000,Buildings Repairs and Maintenance - Reactive,1012,Retford,213.04
Nottinghamshire Fire and Rescue Service,102280,Amptron Electrical Services,Amptron Electrical Services,Operational Responses,1,202202,31/03/2021,P6,9095591,-6236.64,6236.64,2000,Buildings Repairs and Maintenance - Reactive,1014,Southwell,92.94
Nottinghamshire Fire and Rescue Service,102280,Amptron Electrical Services,Amptron Electrical Services,Operational Responses,1,202202,31/03/2021,P6,9095591,-6236.64,6236.64,2000,Buildings Repairs and Maintenance - Reactive,1015,Collingham,78.3
Nottinghamshire Fire and Rescue Service,102280,Amptron Electrical Services,Amptron Electrical Services,Operational Responses,1,202202,31/03/2021,P6,9095591,-6236.64,6236.64,2000,Buildings Repairs and Maintenance - Reactive,1016,Newark,926.04
Nottinghamshire Fire and Rescue Service,102280,Amptron Electrical Services,Amptron Electrical Services,Operational Responses,1,202202,31/03/2021,P6,9095591,-6236.64,6236.64,2000,Buildings Repairs and Maintenance - Reactive,1017,Bingham,242.43
Nottinghamshire Fire and Rescue Service,102280,Amptron Electrical Services,Amptron Electrical Services,Operational Responses,1,202202,31/03/2021,P6,9095591,-6236.64,6236.64,2000,Buildings Repairs and Maintenance - Reactive,1019,West Bridgford,288.34
Nottinghamshire Fire and Rescue Service,102280,Amptron Electrical Services,Amptron Electrical Services,Operational Responses,1,202202,31/03/2021,P6,9095591,-6236.64,6236.64,2000,Buildings Repairs and Maintenance - Reactive,1020,Stockhill,198.15
Nottinghamshire Fire and Rescue Service,102280,Amptron Electrical Services,Amptron Electrical Services,Operational Responses,1,202202,31/03/2021,P6,9095591,-6236.64,6236.64,2000,Buildings Repairs and Maintenance - Reactive,1023,Stapleford,187
Nottinghamshire Fire and Rescue Service,102280,Amptron Electrical Services,Amptron Electrical Services,Operational Responses,1,202202,31/03/2021,P6,9095591,-6236.64,6236.64,2000,Buildings Repairs and Maintenance - Reactive,1026,Arnold,366.17
Nottinghamshire Fire and Rescue Service,102280,Amptron Electrical Services,Amptron Electrical Services,Operational Responses,1,202202,31/03/2021,P6,9095591,-6236.64,6236.64,2000,Buildings Repairs and Maintenance - Reactive,1027,Carlton,90.55
Nottinghamshire Fire and Rescue Service,102280,Amptron Electrical Services,Amptron Electrical Services,Operational Responses,1,202202,31/03/2021,P6,9095591,-6236.64,6236.64,2000,Buildings Repairs and Maintenance - Reactive,1029,Highfields Station,771.26
Nottinghamshire Fire and Rescue Service,102280,Amptron Electrical Services,Amptron Electrical Services,Management & Support Services,1,202202,31/03/2021,P6,9095591,-6236.64,6236.64,2000,Buildings Repairs and Maintenance - Reactive,2086,Procurement,135.42
Nottinghamshire Fire and Rescue Service,102280,Amptron Electrical Services,Amptron Electrical Services,Operational Responses,1,202202,31/03/2021,P6,9095424,-5369.86,5369.86,2050,Building Maintenance - Planned,1001,Mansfield,189.91
Nottinghamshire Fire and Rescue Service,102280,Amptron Electrical Services,Amptron Electrical Services,Operational Responses,1,202202,31/03/2021,P6,9095424,-5369.86,5369.86,2050,Building Maintenance - Planned,1003,London Road,154.72
Nottinghamshire Fire and Rescue Service,102280,Amptron Electrical Services,Amptron Electrical Services,Operational Responses,1,202202,31/03/2021,P6,9095424,-5369.86,5369.86,2050,Building Maintenance - Planned,1005,Ashfield,117.16
Nottinghamshire Fire and Rescue Service,102280,Amptron Electrical Services,Amptron Electrical Services,Operational Responses,1,202202,31/03/2021,P6,9095424,-5369.86,5369.86,2050,Building Maintenance - Planned,1006,Edwinstowe,154.7
Nottinghamshire Fire and Rescue Service,102280,Amptron Electrical Services,Amptron Electrical Services,Operational Responses,1,202202,31/03/2021,P6,9095424,-5369.86,5369.86,2050,Building Maintenance - Planned,1007,Warsop,64.37
Nottinghamshire Fire and Rescue Service,102280,Amptron Electrical Services,Amptron Electrical Services,Operational Responses,1,202202,31/03/2021,P6,9095424,-5369.86,5369.86,2050,Building Maintenance - Planned,1008,Worksop,152.32
Nottinghamshire Fire and Rescue Service,102280,Amptron Electrical Services,Amptron Electrical Services,Operational Responses,1,202202,31/03/2021,P6,9095424,-5369.86,5369.86,2050,Building Maintenance - Planned,1010,Harworth,64.37
Nottinghamshire Fire and Rescue Service,102280,Amptron Electrical Services,Amptron Electrical Services,Operational Responses,1,202202,31/03/2021,P6,9095424,-5369.86,5369.86,2050,Building Maintenance - Planned,1011,Misterton,64.37
Nottinghamshire Fire and Rescue Service,102280,Amptron Electrical Services,Amptron Electrical Services,Operational Responses,1,202202,31/03/2021,P6,9095424,-5369.86,5369.86,2050,Building Maintenance - Planned,1012,Retford,156.9
Nottinghamshire Fire and Rescue Service,102280,Amptron Electrical Services,Amptron Electrical Services,Operational Responses,1,202202,31/03/2021,P6,9095424,-5369.86,5369.86,2050,Building Maintenance - Planned,1013,Tuxford,81.97
Nottinghamshire Fire and Rescue Service,102280,Amptron Electrical Services,Amptron Electrical Services,Operational Responses,1,202202,31/03/2021,P6,9095424,-5369.86,5369.86,2050,Building Maintenance - Planned,1014,Southwell,64.37
Nottinghamshire Fire and Rescue Service,102280,Amptron Electrical Services,Amptron Electrical Services,Operational Responses,1,202202,31/03/2021,P6,9095424,-5369.86,5369.86,2050,Building Maintenance - Planned,1015,Collingham,99.56
Nottinghamshire Fire and Rescue Service,102280,Amptron Electrical Services,Amptron Electrical Services,Operational Responses,1,202202,31/03/2021,P6,9095424,-5369.86,5369.86,2050,Building Maintenance - Planned,1016,Newark,156.9
Nottinghamshire Fire and Rescue Service,102280,Amptron Electrical Services,Amptron Electrical Services,Operational Responses,1,202202,31/03/2021,P6,9095424,-5369.86,5369.86,2050,Building Maintenance - Planned,1017,Bingham,99.56
Nottinghamshire Fire and Rescue Service,102280,Amptron Electrical Services,Amptron Electrical Services,Operational Responses,1,202202,31/03/2021,P6,9095424,-5369.86,5369.86,2050,Building Maintenance - Planned,1019,West Bridgford,532.42
Nottinghamshire Fire and Rescue Service,102280,Amptron Electrical Services,Amptron Electrical Services,Operational Responses,1,202202,31/03/2021,P6,9095424,-5369.86,5369.86,2050,Building Maintenance - Planned,1020,Stockhill,222.7
Nottinghamshire Fire and Rescue Service,102280,Amptron Electrical Services,Amptron Electrical Services,Operational Responses,1,202202,31/03/2021,P6,9095424,-5369.86,5369.86,2050,Building Maintenance - Planned,1023,Stapleford,64.37
Nottinghamshire Fire and Rescue Service,102280,Amptron Electrical Services,Amptron Electrical Services,Operational Responses,1,202202,31/03/2021,P6,9095424,-5369.86,5369.86,2050,Building Maintenance - Planned,1024,Eastwood,134.72
Nottinghamshire Fire and Rescue Service,102280,Amptron Electrical Services,Amptron Electrical Services,Operational Responses,1,202202,31/03/2021,P6,9095424,-5369.86,5369.86,2050,Building Maintenance - Planned,1025,Hucknall,134.72
Nottinghamshire Fire and Rescue Service,102280,Amptron Electrical Services,Amptron Electrical Services,Operational Responses,1,202202,31/03/2021,P6,9095424,-5369.86,5369.86,2050,Building Maintenance - Planned,1026,Arnold,532.87
Nottinghamshire Fire and Rescue Service,102280,Amptron Electrical Services,Amptron Electrical Services,Operational Responses,1,202202,31/03/2021,P6,9095424,-5369.86,5369.86,2050,Building Maintenance - Planned,1027,Carlton,154.74
Nottinghamshire Fire and Rescue Service,102280,Amptron Electrical Services,Amptron Electrical Services,Operational Responses,1,202202,31/03/2021,P6,9095424,-5369.86,5369.86,2050,Building Maintenance - Planned,1028,East Leake,64.37
Nottinghamshire Fire and Rescue Service,102280,Amptron Electrical Services,Amptron Electrical Services,Operational Responses,1,202202,31/03/2021,P6,9095424,-5369.86,5369.86,2050,Building Maintenance - Planned,1029,Highfields Station,500.72
Nottinghamshire Fire and Rescue Service,102280,Amptron Electrical Services,Amptron Electrical Services,Management & Support Services,1,202202,31/03/2021,P6,9095424,-5369.86,5369.86,2050,Building Maintenance - Planned,1030,Service Development Centre,146.33
Nottinghamshire Fire and Rescue Service,102280,Amptron Electrical Services,Amptron Electrical Services,Management & Support Services,1,202202,31/03/2021,P6,9095424,-5369.86,5369.86,2050,Building Maintenance - Planned,1035,Headquarters,365.74
Nottinghamshire Fire and Rescue Service,102280,Amptron Electrical Services,Amptron Electrical Services,Operational Responses,1,202202,31/03/2021,P6,9095427,-24295.46,24295.46,2050,Building Maintenance - Planned,1001,Mansfield,970.55
Nottinghamshire Fire and Rescue Service,102280,Amptron Electrical Services,Amptron Electrical Services,Operational Responses,1,202202,31/03/2021,P6,9095427,-24295.46,24295.46,2050,Building Maintenance - Planned,1003,London Road,1004.89
Nottinghamshire Fire and Rescue Service,102280,Amptron Electrical Services,Amptron Electrical Services,Operational Responses,1,202202,31/03/2021,P6,9095427,-24295.46,24295.46,2050,Building Maintenance - Planned,1005,Ashfield,708.78
Nottinghamshire Fire and Rescue Service,102280,Amptron Electrical Services,Amptron Electrical Services,Operational Responses,1,202202,31/03/2021,P6,9095427,-24295.46,24295.46,2050,Building Maintenance - Planned,1006,Edwinstowe,355.21
Nottinghamshire Fire and Rescue Service,102280,Amptron Electrical Services,Amptron Electrical Services,Operational Responses,1,202202,31/03/2021,P6,9095427,-24295.46,24295.46,2050,Building Maintenance - Planned,1007,Warsop,163.81
Nottinghamshire Fire and Rescue Service,102280,Amptron Electrical Services,Amptron Electrical Services,Operational Responses,1,202202,31/03/2021,P6,9095427,-24295.46,24295.46,2050,Building Maintenance - Planned,1008,Worksop,779.81
Nottinghamshire Fire and Rescue Service,102280,Amptron Electrical Services,Amptron Electrical Services,Operational Responses,1,202202,31/03/2021,P6,9095427,-24295.46,24295.46,2050,Building Maintenance - Planned,1010,Harworth,116.88
Nottinghamshire Fire and Rescue Service,102280,Amptron Electrical Services,Amptron Electrical Services,Operational Responses,1,202202,31/03/2021,P6,9095427,-24295.46,24295.46,2050,Building Maintenance - Planned,1011,Misterton,395.25
Nottinghamshire Fire and Rescue Service,102280,Amptron Electrical Services,Amptron Electrical Services,Operational Responses,1,202202,31/03/2021,P6,9095427,-24295.46,24295.46,2050,Building Maintenance - Planned,1012,Retford,879.12
Nottinghamshire Fire and Rescue Service,102280,Amptron Electrical Services,Amptron Electrical Services,Operational Responses,1,202202,31/03/2021,P6,9095427,-24295.46,24295.46,2050,Building Maintenance - Planned,1013,Tuxford,705.31
Nottinghamshire Fire and Rescue Service,102280,Amptron Electrical Services,Amptron Electrical Services,Operational Responses,1,202202,31/03/2021,P6,9095427,-24295.46,24295.46,2050,Building Maintenance - Planned,1014,Southwell,364.65
Nottinghamshire Fire and Rescue Service,102280,Amptron Electrical Services,Amptron Electrical Services,Operational Responses,1,202202,31/03/2021,P6,9095427,-24295.46,24295.46,2050,Building Maintenance - Planned,1015,Collingham,81.78
Nottinghamshire Fire and Rescue Service,102280,Amptron Electrical Services,Amptron Electrical Services,Operational Responses,1,202202,31/03/2021,P6,9095427,-24295.46,24295.46,2050,Building Maintenance - Planned,1016,Newark,1107.54
Nottinghamshire Fire and Rescue Service,102280,Amptron Electrical Services,Amptron Electrical Services,Operational Responses,1,202202,31/03/2021,P6,9095427,-24295.46,24295.46,2050,Building Maintenance - Planned,1017,Bingham,128.69
Nottinghamshire Fire and Rescue Service,102280,Amptron Electrical Services,Amptron Electrical Services,Operational Responses,1,202202,31/03/2021,P6,9095427,-24295.46,24295.46,2050,Building Maintenance - Planned,1019,West Bridgford,390.25
Nottinghamshire Fire and Rescue Service,102280,Amptron Electrical Services,Amptron Electrical Services,Operational Responses,1,202202,31/03/2021,P6,9095427,-24295.46,24295.46,2050,Building Maintenance - Planned,1020,Stockhill,823.38
Nottinghamshire Fire and Rescue Service,102280,Amptron Electrical Services,Amptron Electrical Services,Operational Responses,1,202202,31/03/2021,P6,9095427,-24295.46,24295.46,2050,Building Maintenance - Planned,1023,Stapleford,329.58
Nottinghamshire Fire and Rescue Service,102280,Amptron Electrical Services,Amptron Electrical Services,Operational Responses,1,202202,31/03/2021,P6,9095427,-24295.46,24295.46,2050,Building Maintenance - Planned,1024,Eastwood,81.78
Nottinghamshire Fire and Rescue Service,102280,Amptron Electrical Services,Amptron Electrical Services,Operational Responses,1,202202,31/03/2021,P6,9095427,-24295.46,24295.46,2050,Building Maintenance - Planned,1025,Hucknall,11.58
Nottinghamshire Fire and Rescue Service,102280,Amptron Electrical Services,Amptron Electrical Services,Operational Responses,1,202202,31/03/2021,P6,9095427,-24295.46,24295.46,2050,Building Maintenance - Planned,1026,Arnold,249.88
Nottinghamshire Fire and Rescue Service,102280,Amptron Electrical Services,Amptron Electrical Services,Operational Responses,1,202202,31/03/2021,P6,9095427,-24295.46,24295.46,2050,Building Maintenance - Planned,1027,Carlton,2130.38
Nottinghamshire Fire and Rescue Service,102280,Amptron Electrical Services,Amptron Electrical Services,Operational Responses,1,202202,31/03/2021,P6,9095427,-24295.46,24295.46,2050,Building Maintenance - Planned,1028,East Leake,446.68
Nottinghamshire Fire and Rescue Service,102280,Amptron Electrical Services,Amptron Electrical Services,Operational Responses,1,202202,31/03/2021,P6,9095427,-24295.46,24295.46,2050,Building Maintenance - Planned,1029,Highfields Station,2629.85
Nottinghamshire Fire and Rescue Service,102280,Amptron Electrical Services,Amptron Electrical Services,Management & Support Services,1,202202,31/03/2021,P6,9095427,-24295.46,24295.46,2050,Building Maintenance - Planned,1030,Service Development Centre,2759.43
Nottinghamshire Fire and Rescue Service,102280,Amptron Electrical Services,Amptron Electrical Services,Management & Support Services,1,202202,31/03/2021,P6,9095427,-24295.46,24295.46,2050,Building Maintenance - Planned,1035,Headquarters,2631.16
Nottinghamshire Fire and Rescue Service,102280,Amptron Electrical Services,Amptron Electrical Services,Operational Responses,1,202202,31/03/2021,P6,9095428,-6322.46,6322.46,2050,Building Maintenance - Planned,1001,Mansfield,74.39
Nottinghamshire Fire and Rescue Service,102280,Amptron Electrical Services,Amptron Electrical Services,Operational Responses,1,202202,31/03/2021,P6,9095428,-6322.46,6322.46,2050,Building Maintenance - Planned,1003,London Road,511.07
Nottinghamshire Fire and Rescue Service,102280,Amptron Electrical Services,Amptron Electrical Services,Operational Responses,1,202202,31/03/2021,P6,9095428,-6322.46,6322.46,2050,Building Maintenance - Planned,1005,Ashfield,74.39
Nottinghamshire Fire and Rescue Service,102280,Amptron Electrical Services,Amptron Electrical Services,Operational Responses,1,202202,31/03/2021,P6,9095428,-6322.46,6322.46,2050,Building Maintenance - Planned,1006,Edwinstowe,612.09
Nottinghamshire Fire and Rescue Service,102280,Amptron Electrical Services,Amptron Electrical Services,Operational Responses,1,202202,31/03/2021,P6,9095428,-6322.46,6322.46,2050,Building Maintenance - Planned,1007,Warsop,289.96
Nottinghamshire Fire and Rescue Service,102280,Amptron Electrical Services,Amptron Electrical Services,Operational Responses,1,202202,31/03/2021,P6,9095428,-6322.46,6322.46,2050,Building Maintenance - Planned,1008,Worksop,74.39
Nottinghamshire Fire and Rescue Service,102280,Amptron Electrical Services,Amptron Electrical Services,Operational Responses,1,202202,31/03/2021,P6,9095428,-6322.46,6322.46,2050,Building Maintenance - Planned,1010,Harworth,11.58
Nottinghamshire Fire and Rescue Service,102280,Amptron Electrical Services,Amptron Electrical Services,Operational Responses,1,202202,31/03/2021,P6,9095428,-6322.46,6322.46,2050,Building Maintenance - Planned,1011,Misterton,11.58
Nottinghamshire Fire and Rescue Service,102280,Amptron Electrical Services,Amptron Electrical Services,Operational Responses,1,202202,31/03/2021,P6,9095428,-6322.46,6322.46,2050,Building Maintenance - Planned,1012,Retford,770.19
Nottinghamshire Fire and Rescue Service,102280,Amptron Electrical Services,Amptron Electrical Services,Operational Responses,1,202202,31/03/2021,P6,9095428,-6322.46,6322.46,2050,Building Maintenance - Planned,1013,Tuxford,74.39
Nottinghamshire Fire and Rescue Service,102280,Amptron Electrical Services,Amptron Electrical Services,Operational Responses,1,202202,31/03/2021,P6,9095428,-6322.46,6322.46,2050,Building Maintenance - Planned,1014,Southwell,11.58
Nottinghamshire Fire and Rescue Service,102280,Amptron Electrical Services,Amptron Electrical Services,Operational Responses,1,202202,31/03/2021,P6,9095428,-6322.46,6322.46,2050,Building Maintenance - Planned,1015,Collingham,11.58
Nottinghamshire Fire and Rescue Service,102280,Amptron Electrical Services,Amptron Electrical Services,Operational Responses,1,202202,31/03/2021,P6,9095428,-6322.46,6322.46,2050,Building Maintenance - Planned,1016,Newark,511.07
Nottinghamshire Fire and Rescue Service,102280,Amptron Electrical Services,Amptron Electrical Services,Operational Responses,1,202202,31/03/2021,P6,9095428,-6322.46,6322.46,2050,Building Maintenance - Planned,1017,Bingham,11.58
Nottinghamshire Fire and Rescue Service,102280,Amptron Electrical Services,Amptron Electrical Services,Operational Responses,1,202202,31/03/2021,P6,9095428,-6322.46,6322.46,2050,Building Maintenance - Planned,1019,West Bridgford,74.39
Nottinghamshire Fire and Rescue Service,102280,Amptron Electrical Services,Amptron Electrical Services,Operational Responses,1,202202,31/03/2021,P6,9095428,-6322.46,6322.46,2050,Building Maintenance - Planned,1020,Stockhill,74.39
Nottinghamshire Fire and Rescue Service,102280,Amptron Electrical Services,Amptron Electrical Services,Operational Responses,1,202202,31/03/2021,P6,9095428,-6322.46,6322.46,2050,Building Maintenance - Planned,1023,Stapleford,11.58
Nottinghamshire Fire and Rescue Service,102280,Amptron Electrical Services,Amptron Electrical Services,Operational Responses,1,202202,31/03/2021,P6,9095428,-6322.46,6322.46,2050,Building Maintenance - Planned,1024,Eastwood,11.58
Nottinghamshire Fire and Rescue Service,102280,Amptron Electrical Services,Amptron Electrical Services,Operational Responses,1,202202,31/03/2021,P6,9095428,-6322.46,6322.46,2050,Building Maintenance - Planned,1025,Hucknall,217.28
Nottinghamshire Fire and Rescue Service,102280,Amptron Electrical Services,Amptron Electrical Services,Operational Responses,1,202202,31/03/2021,P6,9095428,-6322.46,6322.46,2050,Building Maintenance - Planned,1026,Arnold,74.39
Nottinghamshire Fire and Rescue Service,102280,Amptron Electrical Services,Amptron Electrical Services,Operational Responses,1,202202,31/03/2021,P6,9095428,-6322.46,6322.46,2050,Building Maintenance - Planned,1027,Carlton,789.57
Nottinghamshire Fire and Rescue Service,102280,Amptron Electrical Services,Amptron Electrical Services,Operational Responses,1,202202,31/03/2021,P6,9095428,-6322.46,6322.46,2050,Building Maintenance - Planned,1028,East Leake,11.58
Nottinghamshire Fire and Rescue Service,102280,Amptron Electrical Services,Amptron Electrical Services,Operational Responses,1,202202,31/03/2021,P6,9095428,-6322.46,6322.46,2050,Building Maintenance - Planned,1029,Highfields Station,501.28
Nottinghamshire Fire and Rescue Service,102280,Amptron Electrical Services,Amptron Electrical Services,Management & Support Services,1,202202,31/03/2021,P6,9095428,-6322.46,6322.46,2050,Building Maintenance - Planned,1030,Service Development Centre,378.45
Nottinghamshire Fire and Rescue Service,102280,Amptron Electrical Services,Amptron Electrical Services,Management & Support Services,1,202202,31/03/2021,P6,9095428,-6322.46,6322.46,2050,Building Maintenance - Planned,1035,Headquarters,74.39
Nottinghamshire Fire and Rescue Service,102280,Amptron Electrical Services,Amptron Electrical Services,Operational Responses,1,202202,31/03/2021,P6,9095443,-443.5,443.5,2050,Building Maintenance - Planned,1001,Mansfield,35.2
Nottinghamshire Fire and Rescue Service,102280,Amptron Electrical Services,Amptron Electrical Services,Operational Responses,1,202202,31/03/2021,P6,9095443,-443.5,443.5,2050,Building Maintenance - Planned,1005,Ashfield,17.6
Nottinghamshire Fire and Rescue Service,102280,Amptron Electrical Services,Amptron Electrical Services,Operational Responses,1,202202,31/03/2021,P6,9095443,-443.5,443.5,2050,Building Maintenance - Planned,1006,Edwinstowe,17.6
Nottinghamshire Fire and Rescue Service,102280,Amptron Electrical Services,Amptron Electrical Services,Operational Responses,1,202202,31/03/2021,P6,9095443,-443.5,443.5,2050,Building Maintenance - Planned,1007,Warsop,17.6
Nottinghamshire Fire and Rescue Service,102280,Amptron Electrical Services,Amptron Electrical Services,Operational Responses,1,202202,31/03/2021,P6,9095443,-443.5,443.5,2050,Building Maintenance - Planned,1008,Worksop,17.6
Nottinghamshire Fire and Rescue Service,102280,Amptron Electrical Services,Amptron Electrical Services,Operational Responses,1,202202,31/03/2021,P6,9095443,-443.5,443.5,2050,Building Maintenance - Planned,1011,Misterton,17.6
Nottinghamshire Fire and Rescue Service,102280,Amptron Electrical Services,Amptron Electrical Services,Operational Responses,1,202202,31/03/2021,P6,9095443,-443.5,443.5,2050,Building Maintenance - Planned,1012,Retford,17.6
Nottinghamshire Fire and Rescue Service,102280,Amptron Electrical Services,Amptron Electrical Services,Operational Responses,1,202202,31/03/2021,P6,9095443,-443.5,443.5,2050,Building Maintenance - Planned,1013,Tuxford,17.6
Nottinghamshire Fire and Rescue Service,102280,Amptron Electrical Services,Amptron Electrical Services,Operational Responses,1,202202,31/03/2021,P6,9095443,-443.5,443.5,2050,Building Maintenance - Planned,1014,Southwell,17.6
Nottinghamshire Fire and Rescue Service,102280,Amptron Electrical Services,Amptron Electrical Services,Operational Responses,1,202202,31/03/2021,P6,9095443,-443.5,443.5,2050,Building Maintenance - Planned,1016,Newark,17.6
Nottinghamshire Fire and Rescue Service,102280,Amptron Electrical Services,Amptron Electrical Services,Operational Responses,1,202202,31/03/2021,P6,9095443,-443.5,443.5,2050,Building Maintenance - Planned,1019,West Bridgford,17.6
Nottinghamshire Fire and Rescue Service,102280,Amptron Electrical Services,Amptron Electrical Services,Operational Responses,1,202202,31/03/2021,P6,9095443,-443.5,443.5,2050,Building Maintenance - Planned,1020,Stockhill,17.6
Nottinghamshire Fire and Rescue Service,102280,Amptron Electrical Services,Amptron Electrical Services,Operational Responses,1,202202,31/03/2021,P6,9095443,-443.5,443.5,2050,Building Maintenance - Planned,1023,Stapleford,17.6
Nottinghamshire Fire and Rescue Service,102280,Amptron Electrical Services,Amptron Electrical Services,Operational Responses,1,202202,31/03/2021,P6,9095443,-443.5,443.5,2050,Building Maintenance - Planned,1027,Carlton,17.6
Nottinghamshire Fire and Rescue Service,102280,Amptron Electrical Services,Amptron Electrical Services,Operational Responses,1,202202,31/03/2021,P6,9095443,-443.5,443.5,2050,Building Maintenance - Planned,1028,East Leake,17.6
Nottinghamshire Fire and Rescue Service,102280,Amptron Electrical Services,Amptron Electrical Services,Operational Responses,1,202202,31/03/2021,P6,9095443,-443.5,443.5,2050,Building Maintenance - Planned,1029,Highfields Station,35.19
Nottinghamshire Fire and Rescue Service,102280,Amptron Electrical Services,Amptron Electrical Services,Management & Support Services,1,202202,31/03/2021,P6,9095443,-443.5,443.5,2050,Building Maintenance - Planned,1030,Service Development Centre,35.19
Nottinghamshire Fire and Rescue Service,102280,Amptron Electrical Services,Amptron Electrical Services,Management & Support Services,1,202202,31/03/2021,P6,9095443,-443.5,443.5,2050,Building Maintenance - Planned,2086,Procurement,17.6
Nottinghamshire Fire and Rescue Service,102280,Amptron Electrical Services,Amptron Electrical Services,Operational Responses,1,202202,31/03/2021,P6,9095487,-6526.64,6526.64,2050,Building Maintenance - Planned,1005,Ashfield,1534.5
Nottinghamshire Fire and Rescue Service,102280,Amptron Electrical Services,Amptron Electrical Services,Operational Responses,1,202202,31/03/2021,P6,9095487,-6526.64,6526.64,2050,Building Maintenance - Planned,1027,Carlton,902.82
Nottinghamshire Fire and Rescue Service,102280,Amptron Electrical Services,Amptron Electrical Services,Management & Support Services,1,202202,31/03/2021,P6,9095487,-6526.64,6526.64,2050,Building Maintenance - Planned,1030,Service Development Centre,3001.55
Nottinghamshire Fire and Rescue Service,102280,Amptron Electrical Services,Amptron Electrical Services,Operational Responses,1,202202,31/03/2021,P6,9095489,-2555.92,2555.92,2050,Building Maintenance - Planned,1001,Mansfield,168.44
Nottinghamshire Fire and Rescue Service,102280,Amptron Electrical Services,Amptron Electrical Services,Operational Responses,1,202202,31/03/2021,P6,9095489,-2555.92,2555.92,2050,Building Maintenance - Planned,1003,London Road,98
Nottinghamshire Fire and Rescue Service,102280,Amptron Electrical Services,Amptron Electrical Services,Operational Responses,1,202202,31/03/2021,P6,9095489,-2555.92,2555.92,2050,Building Maintenance - Planned,1005,Ashfield,98
Nottinghamshire Fire and Rescue Service,102280,Amptron Electrical Services,Amptron Electrical Services,Operational Responses,1,202202,31/03/2021,P6,9095489,-2555.92,2555.92,2050,Building Maintenance - Planned,1006,Edwinstowe,98
Nottinghamshire Fire and Rescue Service,102280,Amptron Electrical Services,Amptron Electrical Services,Operational Responses,1,202202,31/03/2021,P6,9095489,-2555.92,2555.92,2050,Building Maintenance - Planned,1007,Warsop,35.19
Nottinghamshire Fire and Rescue Service,102280,Amptron Electrical Services,Amptron Electrical Services,Operational Responses,1,202202,31/03/2021,P6,9095489,-2555.92,2555.92,2050,Building Maintenance - Planned,1008,Worksop,94.97
Nottinghamshire Fire and Rescue Service,102280,Amptron Electrical Services,Amptron Electrical Services,Operational Responses,1,202202,31/03/2021,P6,9095489,-2555.92,2555.92,2050,Building Maintenance - Planned,1010,Harworth,35.19
Nottinghamshire Fire and Rescue Service,102280,Amptron Electrical Services,Amptron Electrical Services,Operational Responses,1,202202,31/03/2021,P6,9095489,-2555.92,2555.92,2050,Building Maintenance - Planned,1011,Misterton,35.19
Nottinghamshire Fire and Rescue Service,102280,Amptron Electrical Services,Amptron Electrical Services,Operational Responses,1,202202,31/03/2021,P6,9095489,-2555.92,2555.92,2050,Building Maintenance - Planned,1012,Retford,295.97
Nottinghamshire Fire and Rescue Service,102280,Amptron Electrical Services,Amptron Electrical Services,Operational Responses,1,202202,31/03/2021,P6,9095489,-2555.92,2555.92,2050,Building Maintenance - Planned,1013,Tuxford,98
Nottinghamshire Fire and Rescue Service,102280,Amptron Electrical Services,Amptron Electrical Services,Operational Responses,1,202202,31/03/2021,P6,9095489,-2555.92,2555.92,2050,Building Maintenance - Planned,1014,Southwell,35.19
Nottinghamshire Fire and Rescue Service,102280,Amptron Electrical Services,Amptron Electrical Services,Operational Responses,1,202202,31/03/2021,P6,9095489,-2555.92,2555.92,2050,Building Maintenance - Planned,1015,Collingham,35.19
Nottinghamshire Fire and Rescue Service,102280,Amptron Electrical Services,Amptron Electrical Services,Operational Responses,1,202202,31/03/2021,P6,9095489,-2555.92,2555.92,2050,Building Maintenance - Planned,1016,Newark,97.97
Nottinghamshire Fire and Rescue Service,102280,Amptron Electrical Services,Amptron Electrical Services,Operational Responses,1,202202,31/03/2021,P6,9095489,-2555.92,2555.92,2050,Building Maintenance - Planned,1017,Bingham,35.19
Nottinghamshire Fire and Rescue Service,102280,Amptron Electrical Services,Amptron Electrical Services,Operational Responses,1,202202,31/03/2021,P6,9095489,-2555.92,2555.92,2050,Building Maintenance - Planned,1019,West Bridgford,98
Nottinghamshire Fire and Rescue Service,102280,Amptron Electrical Services,Amptron Electrical Services,Operational Responses,1,202202,31/03/2021,P6,9095489,-2555.92,2555.92,2050,Building Maintenance - Planned,1020,Stockhill,98
Nottinghamshire Fire and Rescue Service,102280,Amptron Electrical Services,Amptron Electrical Services,Operational Responses,1,202202,31/03/2021,P6,9095489,-2555.92,2555.92,2050,Building Maintenance - Planned,1023,Stapleford,35.19
Nottinghamshire Fire and Rescue Service,102280,Amptron Electrical Services,Amptron Electrical Services,Operational Responses,1,202202,31/03/2021,P6,9095489,-2555.92,2555.92,2050,Building Maintenance - Planned,1024,Eastwood,35.19
Nottinghamshire Fire and Rescue Service,102280,Amptron Electrical Services,Amptron Electrical Services,Operational Responses,1,202202,31/03/2021,P6,9095489,-2555.92,2555.92,2050,Building Maintenance - Planned,1025,Hucknall,35.19
Nottinghamshire Fire and Rescue Service,102280,Amptron Electrical Services,Amptron Electrical Services,Operational Responses,1,202202,31/03/2021,P6,9095489,-2555.92,2555.92,2050,Building Maintenance - Planned,1026,Arnold,98
Nottinghamshire Fire and Rescue Service,102280,Amptron Electrical Services,Amptron Electrical Services,Operational Responses,1,202202,31/03/2021,P6,9095489,-2555.92,2555.92,2050,Building Maintenance - Planned,1027,Carlton,98
Nottinghamshire Fire and Rescue Service,102280,Amptron Electrical Services,Amptron Electrical Services,Operational Responses,1,202202,31/03/2021,P6,9095489,-2555.92,2555.92,2050,Building Maintenance - Planned,1028,East Leake,35.19
Nottinghamshire Fire and Rescue Service,102280,Amptron Electrical Services,Amptron Electrical Services,Operational Responses,1,202202,31/03/2021,P6,9095489,-2555.92,2555.92,2050,Building Maintenance - Planned,1029,Highfields Station,133.16
Nottinghamshire Fire and Rescue Service,102280,Amptron Electrical Services,Amptron Electrical Services,Management & Support Services,1,202202,31/03/2021,P6,9095489,-2555.92,2555.92,2050,Building Maintenance - Planned,1030,Service Development Centre,35.19
Nottinghamshire Fire and Rescue Service,102280,Amptron Electrical Services,Amptron Electrical Services,Management & Support Services,1,202202,31/03/2021,P6,9095489,-2555.92,2555.92,2050,Building Maintenance - Planned,1035,Headquarters,168.33
Nottinghamshire Fire and Rescue Service,103837,BWT UK Limited,BWT UK Limited,Operational Responses,5,202202,30/04/2021,P6,9095513,-567.17,567.17,2050,Building Maintenance - Planned,1001,Mansfield,33.2
Nottinghamshire Fire and Rescue Service,103837,BWT UK Limited,BWT UK Limited,Operational Responses,5,202202,30/04/2021,P6,9095513,-567.17,567.17,2050,Building Maintenance - Planned,1002,Blidworth,16.6
Nottinghamshire Fire and Rescue Service,103837,BWT UK Limited,BWT UK Limited,Operational Responses,5,202202,30/04/2021,P6,9095513,-567.17,567.17,2050,Building Maintenance - Planned,1003,London Road,33.2
Nottinghamshire Fire and Rescue Service,103837,BWT UK Limited,BWT UK Limited,Operational Responses,5,202202,30/04/2021,P6,9095513,-567.17,567.17,2050,Building Maintenance - Planned,1005,Ashfield,16.6
Nottinghamshire Fire and Rescue Service,103837,BWT UK Limited,BWT UK Limited,Operational Responses,5,202202,30/04/2021,P6,9095513,-567.17,567.17,2050,Building Maintenance - Planned,1006,Edwinstowe,24.9
Nottinghamshire Fire and Rescue Service,103837,BWT UK Limited,BWT UK Limited,Operational Responses,5,202202,30/04/2021,P6,9095513,-567.17,567.17,2050,Building Maintenance - Planned,1007,Warsop,8.3
Nottinghamshire Fire and Rescue Service,103837,BWT UK Limited,BWT UK Limited,Operational Responses,5,202202,30/04/2021,P6,9095513,-567.17,567.17,2050,Building Maintenance - Planned,1008,Worksop,16.6
Nottinghamshire Fire and Rescue Service,103837,BWT UK Limited,BWT UK Limited,Operational Responses,5,202202,30/04/2021,P6,9095513,-567.17,567.17,2050,Building Maintenance - Planned,1010,Harworth,8.3
Nottinghamshire Fire and Rescue Service,103837,BWT UK Limited,BWT UK Limited,Operational Responses,5,202202,30/04/2021,P6,9095513,-567.17,567.17,2050,Building Maintenance - Planned,1011,Misterton,8.3
Nottinghamshire Fire and Rescue Service,103837,BWT UK Limited,BWT UK Limited,Operational Responses,5,202202,30/04/2021,P6,9095513,-567.17,567.17,2050,Building Maintenance - Planned,1012,Retford,24.9
Nottinghamshire Fire and Rescue Service,103837,BWT UK Limited,BWT UK Limited,Operational Responses,5,202202,30/04/2021,P6,9095513,-567.17,567.17,2050,Building Maintenance - Planned,1013,Tuxford,8.3
Nottinghamshire Fire and Rescue Service,103837,BWT UK Limited,BWT UK Limited,Operational Responses,5,202202,30/04/2021,P6,9095513,-567.17,567.17,2050,Building Maintenance - Planned,1014,Southwell,8.3
Nottinghamshire Fire and Rescue Service,103837,BWT UK Limited,BWT UK Limited,Operational Responses,5,202202,30/04/2021,P6,9095513,-567.17,567.17,2050,Building Maintenance - Planned,1015,Collingham,8.3
Nottinghamshire Fire and Rescue Service,103837,BWT UK Limited,BWT UK Limited,Operational Responses,5,202202,30/04/2021,P6,9095513,-567.17,567.17,2050,Building Maintenance - Planned,1016,Newark,16.6
Nottinghamshire Fire and Rescue Service,103837,BWT UK Limited,BWT UK Limited,Operational Responses,5,202202,30/04/2021,P6,9095513,-567.17,567.17,2050,Building Maintenance - Planned,1017,Bingham,8.07
Nottinghamshire Fire and Rescue Service,103837,BWT UK Limited,BWT UK Limited,Operational Responses,5,202202,30/04/2021,P6,9095513,-567.17,567.17,2050,Building Maintenance - Planned,1019,West Bridgford,16.6
Nottinghamshire Fire and Rescue Service,103837,BWT UK Limited,BWT UK Limited,Operational Responses,5,202202,30/04/2021,P6,9095513,-567.17,567.17,2050,Building Maintenance - Planned,1020,Stockhill,16.6
Nottinghamshire Fire and Rescue Service,103837,BWT UK Limited,BWT UK Limited,Operational Responses,5,202202,30/04/2021,P6,9095513,-567.17,567.17,2050,Building Maintenance - Planned,1023,Stapleford,8.3
Nottinghamshire Fire and Rescue Service,103837,BWT UK Limited,BWT UK Limited,Operational Responses,5,202202,30/04/2021,P6,9095513,-567.17,567.17,2050,Building Maintenance - Planned,1024,Eastwood,8.3
Nottinghamshire Fire and Rescue Service,103837,BWT UK Limited,BWT UK Limited,Operational Responses,5,202202,30/04/2021,P6,9095513,-567.17,567.17,2050,Building Maintenance - Planned,1025,Hucknall,8.07
Nottinghamshire Fire and Rescue Service,103837,BWT UK Limited,BWT UK Limited,Operational Responses,5,202202,30/04/2021,P6,9095513,-567.17,567.17,2050,Building Maintenance - Planned,1026,Arnold,16.6
Nottinghamshire Fire and Rescue Service,103837,BWT UK Limited,BWT UK Limited,Operational Responses,5,202202,30/04/2021,P6,9095513,-567.17,567.17,2050,Building Maintenance - Planned,1027,Carlton,16.6
Nottinghamshire Fire and Rescue Service,103837,BWT UK Limited,BWT UK Limited,Operational Responses,5,202202,30/04/2021,P6,9095513,-567.17,567.17,2050,Building Maintenance - Planned,1028,East Leake,8.3
Nottinghamshire Fire and Rescue Service,103837,BWT UK Limited,BWT UK Limited,Operational Responses,5,202202,30/04/2021,P6,9095513,-567.17,567.17,2050,Building Maintenance - Planned,1029,Highfields Station,33.2
Nottinghamshire Fire and Rescue Service,103837,BWT UK Limited,BWT UK Limited,Management & Support Services,5,202202,30/04/2021,P6,9095513,-567.17,567.17,2050,Building Maintenance - Planned,1030,Service Development Centre,24.9
Nottinghamshire Fire and Rescue Service,103837,BWT UK Limited,BWT UK Limited,Management & Support Services,5,202202,30/04/2021,P6,9095513,-567.17,567.17,2050,Building Maintenance - Planned,1035,Headquarters,74.7
Nottinghamshire Fire and Rescue Service,102280,Amptron Electrical Services,Amptron Electrical Services,Operational Responses,1,202202,31/03/2021,P6,9095561,-29650.15,29650.15,2050,Building Maintenance - Planned,1001,Mansfield,141.93
Nottinghamshire Fire and Rescue Service,102280,Amptron Electrical Services,Amptron Electrical Services,Operational Responses,1,202202,31/03/2021,P6,9095561,-29650.15,29650.15,2050,Building Maintenance - Planned,1002,Blidworth,542.19
Nottinghamshire Fire and Rescue Service,102280,Amptron Electrical Services,Amptron Electrical Services,Operational Responses,1,202202,31/03/2021,P6,9095561,-29650.15,29650.15,2050,Building Maintenance - Planned,1003,London Road,72.02
Nottinghamshire Fire and Rescue Service,102280,Amptron Electrical Services,Amptron Electrical Services,Operational Responses,1,202202,31/03/2021,P6,9095561,-29650.15,29650.15,2050,Building Maintenance - Planned,1005,Ashfield,3467.2
Nottinghamshire Fire and Rescue Service,102280,Amptron Electrical Services,Amptron Electrical Services,Operational Responses,1,202202,31/03/2021,P6,9095561,-29650.15,29650.15,2050,Building Maintenance - Planned,1006,Edwinstowe,696.3
Nottinghamshire Fire and Rescue Service,102280,Amptron Electrical Services,Amptron Electrical Services,Operational Responses,1,202202,31/03/2021,P6,9095561,-29650.15,29650.15,2050,Building Maintenance - Planned,1010,Harworth,519.2
Nottinghamshire Fire and Rescue Service,102280,Amptron Electrical Services,Amptron Electrical Services,Operational Responses,1,202202,31/03/2021,P6,9095561,-29650.15,29650.15,2050,Building Maintenance - Planned,1014,Southwell,74.71
Nottinghamshire Fire and Rescue Service,102280,Amptron Electrical Services,Amptron Electrical Services,Operational Responses,1,202202,31/03/2021,P6,9095561,-29650.15,29650.15,2050,Building Maintenance - Planned,1015,Collingham,1184.27
Nottinghamshire Fire and Rescue Service,102280,Amptron Electrical Services,Amptron Electrical Services,Operational Responses,1,202202,31/03/2021,P6,9095561,-29650.15,29650.15,2050,Building Maintenance - Planned,1016,Newark,1893.87
Nottinghamshire Fire and Rescue Service,102280,Amptron Electrical Services,Amptron Electrical Services,Operational Responses,1,202202,31/03/2021,P6,9095561,-29650.15,29650.15,2050,Building Maintenance - Planned,1017,Bingham,894.78
Nottinghamshire Fire and Rescue Service,102280,Amptron Electrical Services,Amptron Electrical Services,Operational Responses,1,202202,31/03/2021,P6,9095561,-29650.15,29650.15,2050,Building Maintenance - Planned,1019,West Bridgford,49.96
Nottinghamshire Fire and Rescue Service,102280,Amptron Electrical Services,Amptron Electrical Services,Operational Responses,1,202202,31/03/2021,P6,9095561,-29650.15,29650.15,2050,Building Maintenance - Planned,1020,Stockhill,1147.3
Nottinghamshire Fire and Rescue Service,102280,Amptron Electrical Services,Amptron Electrical Services,Operational Responses,1,202202,31/03/2021,P6,9095561,-29650.15,29650.15,2050,Building Maintenance - Planned,1023,Stapleford,160.48
Nottinghamshire Fire and Rescue Service,102280,Amptron Electrical Services,Amptron Electrical Services,Operational Responses,1,202202,31/03/2021,P6,9095561,-29650.15,29650.15,2050,Building Maintenance - Planned,1024,Eastwood,538.91
Nottinghamshire Fire and Rescue Service,102280,Amptron Electrical Services,Amptron Electrical Services,Operational Responses,1,202202,31/03/2021,P6,9095561,-29650.15,29650.15,2050,Building Maintenance - Planned,1026,Arnold,3085.5
Nottinghamshire Fire and Rescue Service,102280,Amptron Electrical Services,Amptron Electrical Services,Operational Responses,1,202202,31/03/2021,P6,9095561,-29650.15,29650.15,2050,Building Maintenance - Planned,1027,Carlton,1051.4
Nottinghamshire Fire and Rescue Service,102280,Amptron Electrical Services,Amptron Electrical Services,Operational Responses,1,202202,31/03/2021,P6,9095561,-29650.15,29650.15,2050,Building Maintenance - Planned,1029,Highfields Station,4641.18
Nottinghamshire Fire and Rescue Service,102280,Amptron Electrical Services,Amptron Electrical Services,Management & Support Services,1,202202,31/03/2021,P6,9095561,-29650.15,29650.15,2050,Building Maintenance - Planned,1030,Service Development Centre,4547.26
Nottinghamshire Fire and Rescue Service,102280,Amptron Electrical Services,Amptron Electrical Services,Management & Support Services,1,202202,31/03/2021,P6,9095587,-2382.94,2382.94,2050,Building Maintenance - Planned,2087,Estates Department (Previously Premises),1985.78
Nottinghamshire Fire and Rescue Service,102280,Amptron Electrical Services,Amptron Electrical Services,Management & Support Services,1,202202,19/05/2021,P6,9095681,-743.99,743.99,2050,Building Maintenance - Planned,2087,Estates Department (Previously Premises),619.99
Nottinghamshire Fire and Rescue Service,101568,British Gas Business,British Gas Business,Operational Responses,1,202202,07/04/2021,P6,9095320,-1159.88,1159.88,2100,Electricity,1002,Blidworth,193.37
Nottinghamshire Fire and Rescue Service,101568,British Gas Business,British Gas Business,Operational Responses,1,202202,07/04/2021,P6,9095320,-1159.88,1159.88,2100,Electricity,1007,Warsop,223.73
Nottinghamshire Fire and Rescue Service,101568,British Gas Business,British Gas Business,Operational Responses,1,202202,07/04/2021,P6,9095320,-1159.88,1159.88,2100,Electricity,1014,Southwell,198.12
Nottinghamshire Fire and Rescue Service,101568,British Gas Business,British Gas Business,Prevention & Education,1,202202,07/04/2021,P6,9095320,-1159.88,1159.88,2100,Electricity,1036,Clifton Community Safety Centre,265.91
Nottinghamshire Fire and Rescue Service,101568,British Gas Business,British Gas Business,Operational Responses,1,202202,07/04/2021,P6,9095320,-1159.88,1159.88,2100,Electricity,2078,Mansfield Fire Station Museum,97.66
Nottinghamshire Fire and Rescue Service,102744,EDF Energy,EDF Energy,Operational Responses,1,202202,07/04/2021,P6,9095625,-868.82,868.82,2100,Electricity,1016,Newark,724.01
Nottinghamshire Fire and Rescue Service,102744,EDF Energy,EDF Energy,Operational Responses,1,202202,07/04/2021,P6,9095626,-1052.33,1052.33,2100,Electricity,1012,Retford,876.94
Nottinghamshire Fire and Rescue Service,102744,EDF Energy,EDF Energy,Operational Responses,1,202202,01/04/2021,P6,9095627,-4827.97,4827.97,2100,Electricity,1029,Highfields Station,4023.31
Nottinghamshire Fire and Rescue Service,102744,EDF Energy,EDF Energy,Management & Support Services,1,202202,01/04/2021,P6,9095628,-3870.54,3870.54,2100,Electricity,1035,Headquarters,3225.45
Nottinghamshire Fire and Rescue Service,102744,EDF Energy,EDF Energy,Operational Responses,1,202202,01/04/2021,P6,9095629,-2294.28,2294.28,2100,Electricity,1027,Carlton,1911.91
Nottinghamshire Fire and Rescue Service,102744,EDF Energy,EDF Energy,Operational Responses,1,202202,01/04/2021,P6,9095630,-1876.02,1876.02,2100,Electricity,1003,London Road,1563.34
Nottinghamshire Fire and Rescue Service,102744,EDF Energy,EDF Energy,Management & Support Services,1,202202,07/04/2021,P6,9095631,-2497.17,2497.17,2100,Electricity,1030,Service Development Centre,2080.98
Nottinghamshire Fire and Rescue Service,101903,Siemens Energy Services Ltd,Siemens Energy Services Ltd,Operational Responses,1,202202,06/05/2021,P6,9095633,-586.25,586.25,2100,Electricity,1029,Highfields Station,488.54
Nottinghamshire Fire and Rescue Service,102744,EDF Energy,EDF Energy,Management & Support Services,1,202202,07/05/2021,P6,9095634,-2137.1,2137.1,2100,Electricity,1030,Service Development Centre,1780.92
Nottinghamshire Fire and Rescue Service,102744,EDF Energy,EDF Energy,Operational Responses,1,202202,04/05/2021,P6,9095656,-4208.37,4208.37,2100,Electricity,1029,Highfields Station,3506.98
Nottinghamshire Fire and Rescue Service,102744,EDF Energy,EDF Energy,Management & Support Services,1,202202,04/05/2021,P6,9095659,-3249.33,3249.33,2100,Electricity,1035,Headquarters,2707.78
Nottinghamshire Fire and Rescue Service,102744,EDF Energy,EDF Energy,Operational Responses,1,202202,04/05/2021,P6,9095660,-2163.88,2163.88,2100,Electricity,1027,Carlton,1803.23
Nottinghamshire Fire and Rescue Service,102744,EDF Energy,EDF Energy,Operational Responses,1,202202,04/05/2021,P6,9095661,-1619.45,1619.45,2100,Electricity,1003,London Road,1349.54
Nottinghamshire Fire and Rescue Service,102744,EDF Energy,EDF Energy,Operational Responses,1,202202,04/05/2021,P6,9095662,-768,768,2100,Electricity,1016,Newark,640
Nottinghamshire Fire and Rescue Service,102744,EDF Energy,EDF Energy,Operational Responses,1,202202,04/05/2021,P6,9095663,-901.21,901.21,2100,Electricity,1012,Retford,751.01
Nottinghamshire Fire and Rescue Service,104098,Total Gas & Power Limited,Total Gas & Power Limited,Operational Responses,5,202202,15/04/2021,P6,9095301,-592.65,592.65,2101,Gas,1019,West Bridgford,493.87
Nottinghamshire Fire and Rescue Service,104098,Total Gas & Power Limited,Total Gas & Power Limited,Operational Responses,5,202202,15/04/2021,P6,9095302,-1024.91,1024.91,2101,Gas,1008,Worksop,854.1
Nottinghamshire Fire and Rescue Service,104098,Total Gas & Power Limited,Total Gas & Power Limited,Operational Responses,5,202202,15/04/2021,P6,9095303,-506.83,506.83,2101,Gas,1024,Eastwood,422.35
Nottinghamshire Fire and Rescue Service,104098,Total Gas & Power Limited,Total Gas & Power Limited,Operational Responses,5,202202,15/04/2021,P6,9095304,-444.53,444.53,2101,Gas,1012,Retford,370.44
Nottinghamshire Fire and Rescue Service,104098,Total Gas & Power Limited,Total Gas & Power Limited,Operational Responses,5,202202,15/04/2021,P6,9095306,-510.07,510.07,2101,Gas,1025,Hucknall,425.06
Nottinghamshire Fire and Rescue Service,104098,Total Gas & Power Limited,Total Gas & Power Limited,Operational Responses,5,202202,15/04/2021,P6,9095307,-644.81,644.81,2101,Gas,1027,Carlton,537.34
Nottinghamshire Fire and Rescue Service,104098,Total Gas & Power Limited,Total Gas & Power Limited,Operational Responses,5,202202,15/04/2021,P6,9095308,-721.25,721.25,2101,Gas,1026,Arnold,601.05
Nottinghamshire Fire and Rescue Service,104098,Total Gas & Power Limited,Total Gas & Power Limited,Operational Responses,5,202202,15/04/2021,P6,9095309,-456,456,2101,Gas,1016,Newark,380
Nottinghamshire Fire and Rescue Service,104098,Total Gas & Power Limited,Total Gas & Power Limited,Operational Responses,5,202202,15/04/2021,P6,9095310,-1472.82,1472.82,2101,Gas,1029,Highfields Station,1227.35
Nottinghamshire Fire and Rescue Service,104098,Total Gas & Power Limited,Total Gas & Power Limited,Management & Support Services,5,202202,15/04/2021,P6,9095311,-594.36,594.36,2101,Gas,1030,Service Development Centre,495.3
Nottinghamshire Fire and Rescue Service,104098,Total Gas & Power Limited,Total Gas & Power Limited,Operational Responses,5,202202,15/04/2021,P6,9095312,-1518.1,1518.1,2101,Gas,1001,Mansfield,1265.07
Nottinghamshire Fire and Rescue Service,104098,Total Gas & Power Limited,Total Gas & Power Limited,Operational Responses,5,202202,15/04/2021,P6,9095313,-298.65,298.65,2101,Gas,1001,Mansfield,248.87
Nottinghamshire Fire and Rescue Service,104098,Total Gas & Power Limited,Total Gas & Power Limited,Operational Responses,5,202202,15/04/2021,P6,9095319,-322.62,322.62,2101,Gas,1010,Harworth,268.85
Nottinghamshire Fire and Rescue Service,103791,Enviroenergy Lrd,Enviroenergy Lrd,Operational Responses,5,202202,31/03/2021,P6,9095321,-1503.46,1503.46,2101,Gas,1003,London Road,1252.88
Nottinghamshire Fire and Rescue Service,104098,Total Gas & Power Limited,Total Gas & Power Limited,Operational Responses,5,202202,15/04/2021,P6,9095322,-1200.26,1200.26,2101,Gas,1005,Ashfield,1000.22
Nottinghamshire Fire and Rescue Service,103791,Enviroenergy Lrd,Enviroenergy Lrd,Operational Responses,5,202202,28/02/2021,P6,9095621,-1575.43,1575.43,2101,Gas,1003,London Road,1312.86
Nottinghamshire Fire and Rescue Service,104098,Total Gas & Power Limited,Total Gas & Power Limited,Operational Responses,5,202202,20/05/2021,P6,9095665,-1315.92,1315.92,2101,Gas,1001,Mansfield,1096.6
Nottinghamshire Fire and Rescue Service,104098,Total Gas & Power Limited,Total Gas & Power Limited,Operational Responses,5,202202,20/05/2021,P6,9095666,-300.69,300.69,2101,Gas,1016,Newark,250.58
Nottinghamshire Fire and Rescue Service,104098,Total Gas & Power Limited,Total Gas & Power Limited,Operational Responses,5,202202,20/05/2021,P6,9095667,-263.23,263.23,2101,Gas,1001,Mansfield,219.36
Nottinghamshire Fire and Rescue Service,104007,Castle Water Limited,Castle Water Limited,Operational Responses,5,202202,05/04/2021,P6,9095339,-1310.98,1310.98,2103,Water Rates,1019,West Bridgford,699.83
Nottinghamshire Fire and Rescue Service,104007,Castle Water Limited,Castle Water Limited,Management & Support Services,5,202202,05/04/2021,P6,9095342,-593.57,593.57,2103,Water Rates,1030,Service Development Centre,361.04
Nottinghamshire Fire and Rescue Service,104007,Castle Water Limited,Castle Water Limited,Operational Responses,5,202202,05/04/2021,P6,9095344,-436.22,436.22,2103,Water Rates,1008,Worksop,168.26
Nottinghamshire Fire and Rescue Service,104007,Castle Water Limited,Castle Water Limited,Management & Support Services,5,202202,05/04/2021,P6,9095345,-418.53,418.53,2103,Water Rates,1035,Headquarters,254.63
Nottinghamshire Fire and Rescue Service,104007,Castle Water Limited,Castle Water Limited,Operational Responses,5,202202,05/04/2021,P6,9095346,-297.06,297.06,2103,Water Rates,1023,Stapleford,140
Nottinghamshire Fire and Rescue Service,104007,Castle Water Limited,Castle Water Limited,Operational Responses,5,202202,05/04/2021,P6,9095349,-405.84,405.84,2103,Water Rates,1029,Highfields Station,246.91
Nottinghamshire Fire and Rescue Service,104007,Castle Water Limited,Castle Water Limited,Operational Responses,5,202202,12/04/2021,P6,9095356,-457.61,457.61,2103,Water Rates,1016,Newark,92.19
Nottinghamshire Fire and Rescue Service,104007,Castle Water Limited,Castle Water Limited,Operational Responses,5,202202,07/05/2021,P6,9095637,-443.9,443.9,2103,Water Rates,1016,Newark,90.69
Nottinghamshire Fire and Rescue Service,104007,Castle Water Limited,Castle Water Limited,Operational Responses,5,202202,07/05/2021,P6,9095643,-311.13,311.13,2103,Water Rates,1008,Worksop,95.78
Nottinghamshire Fire and Rescue Service,104007,Castle Water Limited,Castle Water Limited,Operational Responses,5,202202,07/05/2021,P6,9095647,-257.07,257.07,2103,Water Rates,1023,Stapleford,117.31
Nottinghamshire Fire and Rescue Service,104007,Castle Water Limited,Castle Water Limited,Operational Responses,5,202202,07/05/2021,P6,9095651,-341.8,341.8,2103,Water Rates,1029,Highfields Station,208.56
Nottinghamshire Fire and Rescue Service,104007,Castle Water Limited,Castle Water Limited,Management & Support Services,5,202202,04/05/2021,P6,9095655,-411.05,411.05,2103,Water Rates,1035,Headquarters,250.85
Nottinghamshire Fire and Rescue Service,104007,Castle Water Limited,Castle Water Limited,Operational Responses,5,202202,05/04/2021,P6,9095339,-1310.98,1310.98,2104,Sewerage and Environmental,1019,West Bridgford,611.15
Nottinghamshire Fire and Rescue Service,104007,Castle Water Limited,Castle Water Limited,Management & Support Services,5,202202,05/04/2021,P6,9095342,-593.57,593.57,2104,Sewerage and Environmental,1030,Service Development Centre,232.53
Nottinghamshire Fire and Rescue Service,104007,Castle Water Limited,Castle Water Limited,Operational Responses,5,202202,05/04/2021,P6,9095344,-436.22,436.22,2104,Sewerage and Environmental,1008,Worksop,267.96
Nottinghamshire Fire and Rescue Service,104007,Castle Water Limited,Castle Water Limited,Management & Support Services,5,202202,05/04/2021,P6,9095345,-418.53,418.53,2104,Sewerage and Environmental,1035,Headquarters,163.9
Nottinghamshire Fire and Rescue Service,104007,Castle Water Limited,Castle Water Limited,Operational Responses,5,202202,05/04/2021,P6,9095346,-297.06,297.06,2104,Sewerage and Environmental,1023,Stapleford,157.06
Nottinghamshire Fire and Rescue Service,104007,Castle Water Limited,Castle Water Limited,Operational Responses,5,202202,05/04/2021,P6,9095349,-405.84,405.84,2104,Sewerage and Environmental,1029,Highfields Station,158.93
Nottinghamshire Fire and Rescue Service,104007,Castle Water Limited,Castle Water Limited,Operational Responses,5,202202,12/04/2021,P6,9095356,-457.61,457.61,2104,Sewerage and Environmental,1016,Newark,365.42
Nottinghamshire Fire and Rescue Service,104007,Castle Water Limited,Castle Water Limited,Operational Responses,5,202202,07/05/2021,P6,9095637,-443.9,443.9,2104,Sewerage and Environmental,1016,Newark,353.21
Nottinghamshire Fire and Rescue Service,104007,Castle Water Limited,Castle Water Limited,Operational Responses,5,202202,07/05/2021,P6,9095643,-311.13,311.13,2104,Sewerage and Environmental,1008,Worksop,215.35
Nottinghamshire Fire and Rescue Service,104007,Castle Water Limited,Castle Water Limited,Operational Responses,5,202202,07/05/2021,P6,9095647,-257.07,257.07,2104,Sewerage and Environmental,1023,Stapleford,139.76
Nottinghamshire Fire and Rescue Service,104007,Castle Water Limited,Castle Water Limited,Operational Responses,5,202202,07/05/2021,P6,9095651,-341.8,341.8,2104,Sewerage and Environmental,1029,Highfields Station,133.24
Nottinghamshire Fire and Rescue Service,104007,Castle Water Limited,Castle Water Limited,Management & Support Services,5,202202,04/05/2021,P6,9095655,-411.05,411.05,2104,Sewerage and Environmental,1035,Headquarters,160.2
Nottinghamshire Fire and Rescue Service,102767,Altus Group (UK) Ltd,Altus Group (UK) Ltd,Operational Responses,5,202202,14/04/2021,P6,9095463,-7334.4,7334.4,2105,Business Rates,1020,Stockhill,6112
Nottinghamshire Fire and Rescue Service,102767,Altus Group (UK) Ltd,Altus Group (UK) Ltd,Operational Responses,5,202202,14/04/2021,P6,9095465,-5472.07,5472.07,2105,Business Rates,1024,Eastwood,4560.06
Nottinghamshire Fire and Rescue Service,102767,Altus Group (UK) Ltd,Altus Group (UK) Ltd,Operational Responses,5,202202,14/04/2021,P6,9095466,-4802.03,4802.03,2105,Business Rates,1007,Warsop,4001.69
Nottinghamshire Fire and Rescue Service,102767,Altus Group (UK) Ltd,Altus Group (UK) Ltd,Operational Responses,5,202202,14/04/2021,P6,9095484,-5959.2,5959.2,2105,Business Rates,1005,Ashfield,4966
Nottinghamshire Fire and Rescue Service,102767,Altus Group (UK) Ltd,Altus Group (UK) Ltd,Operational Responses,5,202202,14/04/2021,P6,9095486,-3208.8,3208.8,2105,Business Rates,1001,Mansfield,2674
Nottinghamshire Fire and Rescue Service,102767,Altus Group (UK) Ltd,Altus Group (UK) Ltd,Operational Responses,5,202202,14/04/2021,P6,9095492,-2791.87,2791.87,2105,Business Rates,1014,Southwell,2326.56
Nottinghamshire Fire and Rescue Service,102767,Altus Group (UK) Ltd,Altus Group (UK) Ltd,Operational Responses,5,202202,14/04/2021,P6,9095493,-2292,2292,2105,Business Rates,1013,Tuxford,1910
Nottinghamshire Fire and Rescue Service,102767,Altus Group (UK) Ltd,Altus Group (UK) Ltd,Operational Responses,5,202202,14/04/2021,P6,9095494,-16273.2,16273.2,2105,Business Rates,1019,West Bridgford,13561
Nottinghamshire Fire and Rescue Service,102767,Altus Group (UK) Ltd,Altus Group (UK) Ltd,Operational Responses,5,202202,14/04/2021,P6,9095495,-2233.5,2233.5,2105,Business Rates,1017,Bingham,1861.25
Nottinghamshire Fire and Rescue Service,102767,Altus Group (UK) Ltd,Altus Group (UK) Ltd,Management & Support Services,5,202202,14/04/2021,P6,9095497,-22920,22920,2105,Business Rates,1030,Service Development Centre,19100
Nottinghamshire Fire and Rescue Service,102767,Altus Group (UK) Ltd,Altus Group (UK) Ltd,Operational Responses,5,202202,14/04/2021,P6,9095500,-4846.2,4846.2,2105,Business Rates,1008,Worksop,4038.5
Nottinghamshire Fire and Rescue Service,102767,Altus Group (UK) Ltd,Altus Group (UK) Ltd,Operational Responses,5,202202,14/04/2021,P6,9095502,-2121.83,2121.83,2105,Business Rates,1015,Collingham,1768.19
Nottinghamshire Fire and Rescue Service,102767,Altus Group (UK) Ltd,Altus Group (UK) Ltd,Operational Responses,5,202202,14/04/2021,P6,9095503,-4125.6,4125.6,2105,Business Rates,1012,Retford,3438
Nottinghamshire Fire and Rescue Service,102767,Altus Group (UK) Ltd,Altus Group (UK) Ltd,Operational Responses,5,202202,14/04/2021,P6,9095504,-8183.53,8183.53,2105,Business Rates,1026,Arnold,6819.61
Nottinghamshire Fire and Rescue Service,102767,Altus Group (UK) Ltd,Altus Group (UK) Ltd,Operational Responses,5,202202,14/04/2021,P6,9095505,-2568.53,2568.53,2105,Business Rates,1010,Harworth,2140.44
Nottinghamshire Fire and Rescue Service,102767,Altus Group (UK) Ltd,Altus Group (UK) Ltd,Operational Responses,5,202202,14/04/2021,P6,9095508,-4584,4584,2105,Business Rates,1003,London Road,3820
Nottinghamshire Fire and Rescue Service,102767,Altus Group (UK) Ltd,Altus Group (UK) Ltd,Operational Responses,5,202202,14/04/2021,P6,9095509,-3527.33,3527.33,2105,Business Rates,1025,Hucknall,2939.44
Nottinghamshire Fire and Rescue Service,102767,Altus Group (UK) Ltd,Altus Group (UK) Ltd,Operational Responses,5,202202,14/04/2021,P6,9095510,-2010.16,2010.16,2105,Business Rates,1006,Edwinstowe,1675.13
Nottinghamshire Fire and Rescue Service,102767,Altus Group (UK) Ltd,Altus Group (UK) Ltd,Operational Responses,5,202202,14/04/2021,P6,9095511,-6417.6,6417.6,2105,Business Rates,1027,Carlton,5348
Nottinghamshire Fire and Rescue Service,102767,Altus Group (UK) Ltd,Altus Group (UK) Ltd,Operational Responses,5,202202,14/04/2021,P6,9095512,-2456.86,2456.86,2105,Business Rates,1023,Stapleford,2047.38
Nottinghamshire Fire and Rescue Service,102767,Altus Group (UK) Ltd,Altus Group (UK) Ltd,Operational Responses,5,202202,14/04/2021,P6,9095589,-2456.86,2456.86,2105,Business Rates,1028,East Leake,2047.38
Nottinghamshire Fire and Rescue Service,102767,Altus Group (UK) Ltd,Altus Group (UK) Ltd,Operational Responses,5,202202,14/04/2021,P6,9095590,-2456.84,2456.84,2105,Business Rates,1028,East Leake,2047.37
Nottinghamshire Fire and Rescue Service,103280,Shred IT Limited,Shred IT Limited,Management & Support Services,5,202202,31/03/2021,P6,9095358,-612,612,2106,Refuse / Trade Waste Collection,2086,Procurement,510
Nottinghamshire Fire and Rescue Service,103847,Veolia ES UK Limited,Veolia ES UK Limited,Management & Support Services,5,202202,30/04/2021,P6,9095458,-1789.72,1789.72,2106,Refuse / Trade Waste Collection,2086,Procurement,1491.43
Nottinghamshire Fire and Rescue Service,103280,Shred IT Limited,Shred IT Limited,Management & Support Services,5,202202,28/02/2021,P6,9095459,-420,420,2106,Refuse / Trade Waste Collection,2086,Procurement,350
Nottinghamshire Fire and Rescue Service,100557,NCC Sundry Debtors,NCC Sundry Debtors,Management & Support Services,4,202202,01/05/2021,P6,9095330,-1131.62,1131.62,2201,Grounds Maintenance,1035,Headquarters,943.02
Nottinghamshire Fire and Rescue Service,100557,NCC Sundry Debtors,NCC Sundry Debtors,Operational Responses,4,202202,01/05/2021,P6,9095336,-1757.15,1757.15,2201,Grounds Maintenance,1001,Mansfield,38.54
Nottinghamshire Fire and Rescue Service,100557,NCC Sundry Debtors,NCC Sundry Debtors,Operational Responses,4,202202,01/05/2021,P6,9095336,-1757.15,1757.15,2201,Grounds Maintenance,1002,Blidworth,66.02
Nottinghamshire Fire and Rescue Service,100557,NCC Sundry Debtors,NCC Sundry Debtors,Operational Responses,4,202202,01/05/2021,P6,9095336,-1757.15,1757.15,2201,Grounds Maintenance,1003,London Road,35.43
Nottinghamshire Fire and Rescue Service,100557,NCC Sundry Debtors,NCC Sundry Debtors,Operational Responses,4,202202,01/05/2021,P6,9095336,-1757.15,1757.15,2201,Grounds Maintenance,1005,Ashfield,177.17
Nottinghamshire Fire and Rescue Service,100557,NCC Sundry Debtors,NCC Sundry Debtors,Operational Responses,4,202202,01/05/2021,P6,9095336,-1757.15,1757.15,2201,Grounds Maintenance,1006,Edwinstowe,37.47
Nottinghamshire Fire and Rescue Service,100557,NCC Sundry Debtors,NCC Sundry Debtors,Operational Responses,4,202202,01/05/2021,P6,9095336,-1757.15,1757.15,2201,Grounds Maintenance,1007,Warsop,3.24
Nottinghamshire Fire and Rescue Service,100557,NCC Sundry Debtors,NCC Sundry Debtors,Operational Responses,4,202202,01/05/2021,P6,9095336,-1757.15,1757.15,2201,Grounds Maintenance,1008,Worksop,34.99
Nottinghamshire Fire and Rescue Service,100557,NCC Sundry Debtors,NCC Sundry Debtors,Operational Responses,4,202202,01/05/2021,P6,9095336,-1757.15,1757.15,2201,Grounds Maintenance,1010,Harworth,41.13
Nottinghamshire Fire and Rescue Service,100557,NCC Sundry Debtors,NCC Sundry Debtors,Operational Responses,4,202202,01/05/2021,P6,9095336,-1757.15,1757.15,2201,Grounds Maintenance,1011,Misterton,38.18
Nottinghamshire Fire and Rescue Service,100557,NCC Sundry Debtors,NCC Sundry Debtors,Operational Responses,4,202202,01/05/2021,P6,9095336,-1757.15,1757.15,2201,Grounds Maintenance,1012,Retford,25.61
Nottinghamshire Fire and Rescue Service,100557,NCC Sundry Debtors,NCC Sundry Debtors,Operational Responses,4,202202,01/05/2021,P6,9095336,-1757.15,1757.15,2201,Grounds Maintenance,1013,Tuxford,26.62
Nottinghamshire Fire and Rescue Service,100557,NCC Sundry Debtors,NCC Sundry Debtors,Operational Responses,4,202202,01/05/2021,P6,9095336,-1757.15,1757.15,2201,Grounds Maintenance,1014,Southwell,25.3
Nottinghamshire Fire and Rescue Service,100557,NCC Sundry Debtors,NCC Sundry Debtors,Operational Responses,4,202202,01/05/2021,P6,9095336,-1757.15,1757.15,2201,Grounds Maintenance,1015,Collingham,14.81
Nottinghamshire Fire and Rescue Service,100557,NCC Sundry Debtors,NCC Sundry Debtors,Operational Responses,4,202202,01/05/2021,P6,9095336,-1757.15,1757.15,2201,Grounds Maintenance,1016,Newark,36.76
Nottinghamshire Fire and Rescue Service,100557,NCC Sundry Debtors,NCC Sundry Debtors,Operational Responses,4,202202,01/05/2021,P6,9095336,-1757.15,1757.15,2201,Grounds Maintenance,1017,Bingham,62.36
Nottinghamshire Fire and Rescue Service,100557,NCC Sundry Debtors,NCC Sundry Debtors,Operational Responses,4,202202,01/05/2021,P6,9095336,-1757.15,1757.15,2201,Grounds Maintenance,1019,West Bridgford,105.73
Nottinghamshire Fire and Rescue Service,100557,NCC Sundry Debtors,NCC Sundry Debtors,Operational Responses,4,202202,01/05/2021,P6,9095336,-1757.15,1757.15,2201,Grounds Maintenance,1020,Stockhill,210.32
Nottinghamshire Fire and Rescue Service,100557,NCC Sundry Debtors,NCC Sundry Debtors,Operational Responses,4,202202,01/05/2021,P6,9095336,-1757.15,1757.15,2201,Grounds Maintenance,1023,Stapleford,78.35
Nottinghamshire Fire and Rescue Service,100557,NCC Sundry Debtors,NCC Sundry Debtors,Operational Responses,4,202202,01/05/2021,P6,9095336,-1757.15,1757.15,2201,Grounds Maintenance,1024,Eastwood,26.37
Nottinghamshire Fire and Rescue Service,100557,NCC Sundry Debtors,NCC Sundry Debtors,Operational Responses,4,202202,01/05/2021,P6,9095336,-1757.15,1757.15,2201,Grounds Maintenance,1026,Arnold,11
Nottinghamshire Fire and Rescue Service,100557,NCC Sundry Debtors,NCC Sundry Debtors,Operational Responses,4,202202,01/05/2021,P6,9095336,-1757.15,1757.15,2201,Grounds Maintenance,1027,Carlton,9.94
Nottinghamshire Fire and Rescue Service,100557,NCC Sundry Debtors,NCC Sundry Debtors,Operational Responses,4,202202,01/05/2021,P6,9095336,-1757.15,1757.15,2201,Grounds Maintenance,1028,East Leake,129.31
Nottinghamshire Fire and Rescue Service,100557,NCC Sundry Debtors,NCC Sundry Debtors,Operational Responses,4,202202,01/05/2021,P6,9095336,-1757.15,1757.15,2201,Grounds Maintenance,1029,Highfields Station,77.08
Nottinghamshire Fire and Rescue Service,100557,NCC Sundry Debtors,NCC Sundry Debtors,Management & Support Services,4,202202,01/05/2021,P6,9095336,-1757.15,1757.15,2201,Grounds Maintenance,1030,Service Development Centre,152.56
Nottinghamshire Fire and Rescue Service,100268,County Supplies-Sales Ledger,County Supplies-Sales Ledger,Operational Responses,4,202202,19/02/2021,P6,9095375,-771.6,771.6,2201,Grounds Maintenance,1016,Newark,643
Nottinghamshire Fire and Rescue Service,103337,Falcon Environmental Limited,Falcon Environmental Limited,Operational Responses,5,202202,30/04/2021,P6,9095329,-504,504,2204,Contract Cleaning,1029,Highfields Station,420
Nottinghamshire Fire and Rescue Service,100557,NCC Sundry Debtors,NCC Sundry Debtors,Operational Responses,4,202202,01/05/2021,P6,9095332,-33743.82,33743.82,2204,Contract Cleaning,1001,Mansfield,2274.41
Nottinghamshire Fire and Rescue Service,100557,NCC Sundry Debtors,NCC Sundry Debtors,Operational Responses,4,202202,01/05/2021,P6,9095332,-33743.82,33743.82,2204,Contract Cleaning,1003,London Road,2510.43
Nottinghamshire Fire and Rescue Service,100557,NCC Sundry Debtors,NCC Sundry Debtors,Operational Responses,4,202202,01/05/2021,P6,9095332,-33743.82,33743.82,2204,Contract Cleaning,1005,Ashfield,1274.22
Nottinghamshire Fire and Rescue Service,100557,NCC Sundry Debtors,NCC Sundry Debtors,Operational Responses,4,202202,01/05/2021,P6,9095332,-33743.82,33743.82,2204,Contract Cleaning,1006,Edwinstowe,983.82
Nottinghamshire Fire and Rescue Service,100557,NCC Sundry Debtors,NCC Sundry Debtors,Operational Responses,4,202202,01/05/2021,P6,9095332,-33743.82,33743.82,2204,Contract Cleaning,1008,Worksop,1435.47
Nottinghamshire Fire and Rescue Service,100557,NCC Sundry Debtors,NCC Sundry Debtors,Operational Responses,4,202202,01/05/2021,P6,9095332,-33743.82,33743.82,2204,Contract Cleaning,1012,Retford,1628.96
Nottinghamshire Fire and Rescue Service,100557,NCC Sundry Debtors,NCC Sundry Debtors,Operational Responses,4,202202,01/05/2021,P6,9095332,-33743.82,33743.82,2204,Contract Cleaning,1016,Newark,1274.22
Nottinghamshire Fire and Rescue Service,100557,NCC Sundry Debtors,NCC Sundry Debtors,Operational Responses,4,202202,01/05/2021,P6,9095332,-33743.82,33743.82,2204,Contract Cleaning,1019,West Bridgford,1951.34
Nottinghamshire Fire and Rescue Service,100557,NCC Sundry Debtors,NCC Sundry Debtors,Operational Responses,4,202202,01/05/2021,P6,9095332,-33743.82,33743.82,2204,Contract Cleaning,1020,Stockhill,1596.71
Nottinghamshire Fire and Rescue Service,100557,NCC Sundry Debtors,NCC Sundry Debtors,Operational Responses,4,202202,01/05/2021,P6,9095332,-33743.82,33743.82,2204,Contract Cleaning,1026,Arnold,1193.6
Nottinghamshire Fire and Rescue Service,100557,NCC Sundry Debtors,NCC Sundry Debtors,Operational Responses,4,202202,01/05/2021,P6,9095332,-33743.82,33743.82,2204,Contract Cleaning,1027,Carlton,2242.16
Nottinghamshire Fire and Rescue Service,100557,NCC Sundry Debtors,NCC Sundry Debtors,Operational Responses,4,202202,01/05/2021,P6,9095332,-33743.82,33743.82,2204,Contract Cleaning,1029,Highfields Station,4203.44
Nottinghamshire Fire and Rescue Service,100557,NCC Sundry Debtors,NCC Sundry Debtors,Management & Support Services,4,202202,01/05/2021,P6,9095332,-33743.82,33743.82,2204,Contract Cleaning,1030,Service Development Centre,1741.91
Nottinghamshire Fire and Rescue Service,100557,NCC Sundry Debtors,NCC Sundry Debtors,Management & Support Services,4,202202,01/05/2021,P6,9095332,-33743.82,33743.82,2204,Contract Cleaning,2086,Procurement,3809.16
Nottinghamshire Fire and Rescue Service,100557,NCC Sundry Debtors,NCC Sundry Debtors,Operational Responses,4,202202,01/05/2021,P6,9095333,-3249.88,3249.88,2204,Contract Cleaning,1007,Warsop,161.16
Nottinghamshire Fire and Rescue Service,100557,NCC Sundry Debtors,NCC Sundry Debtors,Operational Responses,4,202202,01/05/2021,P6,9095333,-3249.88,3249.88,2204,Contract Cleaning,1010,Harworth,322.41
Nottinghamshire Fire and Rescue Service,100557,NCC Sundry Debtors,NCC Sundry Debtors,Operational Responses,4,202202,01/05/2021,P6,9095333,-3249.88,3249.88,2204,Contract Cleaning,1011,Misterton,257.94
Nottinghamshire Fire and Rescue Service,100557,NCC Sundry Debtors,NCC Sundry Debtors,Operational Responses,4,202202,01/05/2021,P6,9095333,-3249.88,3249.88,2204,Contract Cleaning,1013,Tuxford,193.37
Nottinghamshire Fire and Rescue Service,100557,NCC Sundry Debtors,NCC Sundry Debtors,Operational Responses,4,202202,01/05/2021,P6,9095333,-3249.88,3249.88,2204,Contract Cleaning,1014,Southwell,290.2
Nottinghamshire Fire and Rescue Service,100557,NCC Sundry Debtors,NCC Sundry Debtors,Operational Responses,4,202202,01/05/2021,P6,9095333,-3249.88,3249.88,2204,Contract Cleaning,1015,Collingham,290.2
Nottinghamshire Fire and Rescue Service,100557,NCC Sundry Debtors,NCC Sundry Debtors,Operational Responses,4,202202,01/05/2021,P6,9095333,-3249.88,3249.88,2204,Contract Cleaning,1017,Bingham,193.56
Nottinghamshire Fire and Rescue Service,100557,NCC Sundry Debtors,NCC Sundry Debtors,Operational Responses,4,202202,01/05/2021,P6,9095333,-3249.88,3249.88,2204,Contract Cleaning,1023,Stapleford,483.61
Nottinghamshire Fire and Rescue Service,100557,NCC Sundry Debtors,NCC Sundry Debtors,Operational Responses,4,202202,01/05/2021,P6,9095333,-3249.88,3249.88,2204,Contract Cleaning,1024,Eastwood,322.36
Nottinghamshire Fire and Rescue Service,100557,NCC Sundry Debtors,NCC Sundry Debtors,Operational Responses,4,202202,01/05/2021,P6,9095333,-3249.88,3249.88,2204,Contract Cleaning,1028,East Leake,193.42
Nottinghamshire Fire and Rescue Service,100557,NCC Sundry Debtors,NCC Sundry Debtors,Operational Responses,4,202202,01/05/2021,P6,9095334,-556.34,556.34,2204,Contract Cleaning,1001,Mansfield,15.01
Nottinghamshire Fire and Rescue Service,100557,NCC Sundry Debtors,NCC Sundry Debtors,Operational Responses,4,202202,01/05/2021,P6,9095334,-556.34,556.34,2204,Contract Cleaning,1002,Blidworth,11.26
Nottinghamshire Fire and Rescue Service,100557,NCC Sundry Debtors,NCC Sundry Debtors,Operational Responses,4,202202,01/05/2021,P6,9095334,-556.34,556.34,2204,Contract Cleaning,1003,London Road,14.07
Nottinghamshire Fire and Rescue Service,100557,NCC Sundry Debtors,NCC Sundry Debtors,Operational Responses,4,202202,01/05/2021,P6,9095334,-556.34,556.34,2204,Contract Cleaning,1005,Ashfield,15.01
Nottinghamshire Fire and Rescue Service,100557,NCC Sundry Debtors,NCC Sundry Debtors,Operational Responses,4,202202,01/05/2021,P6,9095334,-556.34,556.34,2204,Contract Cleaning,1006,Edwinstowe,11.26
Nottinghamshire Fire and Rescue Service,100557,NCC Sundry Debtors,NCC Sundry Debtors,Operational Responses,4,202202,01/05/2021,P6,9095334,-556.34,556.34,2204,Contract Cleaning,1007,Warsop,11.26
Nottinghamshire Fire and Rescue Service,100557,NCC Sundry Debtors,NCC Sundry Debtors,Operational Responses,4,202202,01/05/2021,P6,9095334,-556.34,556.34,2204,Contract Cleaning,1008,Worksop,15.01
Nottinghamshire Fire and Rescue Service,100557,NCC Sundry Debtors,NCC Sundry Debtors,Operational Responses,4,202202,01/05/2021,P6,9095334,-556.34,556.34,2204,Contract Cleaning,1010,Harworth,11.26
Nottinghamshire Fire and Rescue Service,100557,NCC Sundry Debtors,NCC Sundry Debtors,Operational Responses,4,202202,01/05/2021,P6,9095334,-556.34,556.34,2204,Contract Cleaning,1011,Misterton,11.26
Nottinghamshire Fire and Rescue Service,100557,NCC Sundry Debtors,NCC Sundry Debtors,Operational Responses,4,202202,01/05/2021,P6,9095334,-556.34,556.34,2204,Contract Cleaning,1012,Retford,11.26
Nottinghamshire Fire and Rescue Service,100557,NCC Sundry Debtors,NCC Sundry Debtors,Operational Responses,4,202202,01/05/2021,P6,9095334,-556.34,556.34,2204,Contract Cleaning,1013,Tuxford,11.26
Nottinghamshire Fire and Rescue Service,100557,NCC Sundry Debtors,NCC Sundry Debtors,Operational Responses,4,202202,01/05/2021,P6,9095334,-556.34,556.34,2204,Contract Cleaning,1014,Southwell,11.26
Nottinghamshire Fire and Rescue Service,100557,NCC Sundry Debtors,NCC Sundry Debtors,Operational Responses,4,202202,01/05/2021,P6,9095334,-556.34,556.34,2204,Contract Cleaning,1015,Collingham,11.26
Nottinghamshire Fire and Rescue Service,100557,NCC Sundry Debtors,NCC Sundry Debtors,Operational Responses,4,202202,01/05/2021,P6,9095334,-556.34,556.34,2204,Contract Cleaning,1016,Newark,15.01
Nottinghamshire Fire and Rescue Service,100557,NCC Sundry Debtors,NCC Sundry Debtors,Operational Responses,4,202202,01/05/2021,P6,9095334,-556.34,556.34,2204,Contract Cleaning,1017,Bingham,11.26
Nottinghamshire Fire and Rescue Service,100557,NCC Sundry Debtors,NCC Sundry Debtors,Operational Responses,4,202202,01/05/2021,P6,9095334,-556.34,556.34,2204,Contract Cleaning,1019,West Bridgford,15.01
Nottinghamshire Fire and Rescue Service,100557,NCC Sundry Debtors,NCC Sundry Debtors,Operational Responses,4,202202,01/05/2021,P6,9095334,-556.34,556.34,2204,Contract Cleaning,1020,Stockhill,15.01
Nottinghamshire Fire and Rescue Service,100557,NCC Sundry Debtors,NCC Sundry Debtors,Operational Responses,4,202202,01/05/2021,P6,9095334,-556.34,556.34,2204,Contract Cleaning,1023,Stapleford,11.26
Nottinghamshire Fire and Rescue Service,100557,NCC Sundry Debtors,NCC Sundry Debtors,Operational Responses,4,202202,01/05/2021,P6,9095334,-556.34,556.34,2204,Contract Cleaning,1024,Eastwood,11.26
Nottinghamshire Fire and Rescue Service,100557,NCC Sundry Debtors,NCC Sundry Debtors,Operational Responses,4,202202,01/05/2021,P6,9095334,-556.34,556.34,2204,Contract Cleaning,1026,Arnold,15.01
Nottinghamshire Fire and Rescue Service,100557,NCC Sundry Debtors,NCC Sundry Debtors,Operational Responses,4,202202,01/05/2021,P6,9095334,-556.34,556.34,2204,Contract Cleaning,1027,Carlton,15.01
Nottinghamshire Fire and Rescue Service,100557,NCC Sundry Debtors,NCC Sundry Debtors,Operational Responses,4,202202,01/05/2021,P6,9095334,-556.34,556.34,2204,Contract Cleaning,1028,East Leake,11.26
Nottinghamshire Fire and Rescue Service,100557,NCC Sundry Debtors,NCC Sundry Debtors,Operational Responses,4,202202,01/05/2021,P6,9095334,-556.34,556.34,2204,Contract Cleaning,1029,Highfields Station,15.01
Nottinghamshire Fire and Rescue Service,100557,NCC Sundry Debtors,NCC Sundry Debtors,Management & Support Services,4,202202,01/05/2021,P6,9095334,-556.34,556.34,2204,Contract Cleaning,1030,Service Development Centre,33.77
Nottinghamshire Fire and Rescue Service,100557,NCC Sundry Debtors,NCC Sundry Debtors,Management & Support Services,4,202202,01/05/2021,P6,9095334,-556.34,556.34,2204,Contract Cleaning,1035,Headquarters,134.31
Nottinghamshire Fire and Rescue Service,103337,Falcon Environmental Limited,Falcon Environmental Limited,Operational Responses,5,202202,30/03/2021,P6,9095680,-672,672,2204,Contract Cleaning,1029,Highfields Station,560
Nottinghamshire Fire and Rescue Service,100557,NCC Sundry Debtors,NCC Sundry Debtors,Operational Responses,4,202202,30/04/2021,P6,9095331,-457.03,457.03,2205,Window Cleaning,1001,Mansfield,18.76
Nottinghamshire Fire and Rescue Service,100557,NCC Sundry Debtors,NCC Sundry Debtors,Operational Responses,4,202202,30/04/2021,P6,9095331,-457.03,457.03,2205,Window Cleaning,1002,Blidworth,11.26
Nottinghamshire Fire and Rescue Service,100557,NCC Sundry Debtors,NCC Sundry Debtors,Operational Responses,4,202202,30/04/2021,P6,9095331,-457.03,457.03,2205,Window Cleaning,1003,London Road,22.51
Nottinghamshire Fire and Rescue Service,100557,NCC Sundry Debtors,NCC Sundry Debtors,Operational Responses,4,202202,30/04/2021,P6,9095331,-457.03,457.03,2205,Window Cleaning,1005,Ashfield,11.26
Nottinghamshire Fire and Rescue Service,100557,NCC Sundry Debtors,NCC Sundry Debtors,Operational Responses,4,202202,30/04/2021,P6,9095331,-457.03,457.03,2205,Window Cleaning,1006,Edwinstowe,16.88
Nottinghamshire Fire and Rescue Service,100557,NCC Sundry Debtors,NCC Sundry Debtors,Operational Responses,4,202202,30/04/2021,P6,9095331,-457.03,457.03,2205,Window Cleaning,1007,Warsop,9.38
Nottinghamshire Fire and Rescue Service,100557,NCC Sundry Debtors,NCC Sundry Debtors,Operational Responses,4,202202,30/04/2021,P6,9095331,-457.03,457.03,2205,Window Cleaning,1008,Worksop,11.26
Nottinghamshire Fire and Rescue Service,100557,NCC Sundry Debtors,NCC Sundry Debtors,Operational Responses,4,202202,30/04/2021,P6,9095331,-457.03,457.03,2205,Window Cleaning,1010,Harworth,11.26
Nottinghamshire Fire and Rescue Service,100557,NCC Sundry Debtors,NCC Sundry Debtors,Operational Responses,4,202202,30/04/2021,P6,9095331,-457.03,457.03,2205,Window Cleaning,1011,Misterton,11.26
Nottinghamshire Fire and Rescue Service,100557,NCC Sundry Debtors,NCC Sundry Debtors,Operational Responses,4,202202,30/04/2021,P6,9095331,-457.03,457.03,2205,Window Cleaning,1012,Retford,15.01
Nottinghamshire Fire and Rescue Service,100557,NCC Sundry Debtors,NCC Sundry Debtors,Operational Responses,4,202202,30/04/2021,P6,9095331,-457.03,457.03,2205,Window Cleaning,1013,Tuxford,9.38
Nottinghamshire Fire and Rescue Service,100557,NCC Sundry Debtors,NCC Sundry Debtors,Operational Responses,4,202202,30/04/2021,P6,9095331,-457.03,457.03,2205,Window Cleaning,1014,Southwell,9.38
Nottinghamshire Fire and Rescue Service,100557,NCC Sundry Debtors,NCC Sundry Debtors,Operational Responses,4,202202,30/04/2021,P6,9095331,-457.03,457.03,2205,Window Cleaning,1015,Collingham,11.26
Nottinghamshire Fire and Rescue Service,100557,NCC Sundry Debtors,NCC Sundry Debtors,Operational Responses,4,202202,30/04/2021,P6,9095331,-457.03,457.03,2205,Window Cleaning,1016,Newark,11.26
Nottinghamshire Fire and Rescue Service,100557,NCC Sundry Debtors,NCC Sundry Debtors,Operational Responses,4,202202,30/04/2021,P6,9095331,-457.03,457.03,2205,Window Cleaning,1017,Bingham,11.26
Nottinghamshire Fire and Rescue Service,100557,NCC Sundry Debtors,NCC Sundry Debtors,Operational Responses,4,202202,30/04/2021,P6,9095331,-457.03,457.03,2205,Window Cleaning,1019,West Bridgford,13.13
Nottinghamshire Fire and Rescue Service,100557,NCC Sundry Debtors,NCC Sundry Debtors,Operational Responses,4,202202,30/04/2021,P6,9095331,-457.03,457.03,2205,Window Cleaning,1020,Stockhill,16.88
Nottinghamshire Fire and Rescue Service,100557,NCC Sundry Debtors,NCC Sundry Debtors,Operational Responses,4,202202,30/04/2021,P6,9095331,-457.03,457.03,2205,Window Cleaning,1023,Stapleford,11.26
Nottinghamshire Fire and Rescue Service,100557,NCC Sundry Debtors,NCC Sundry Debtors,Operational Responses,4,202202,30/04/2021,P6,9095331,-457.03,457.03,2205,Window Cleaning,1024,Eastwood,11.26
Nottinghamshire Fire and Rescue Service,100557,NCC Sundry Debtors,NCC Sundry Debtors,Operational Responses,4,202202,30/04/2021,P6,9095331,-457.03,457.03,2205,Window Cleaning,1026,Arnold,11.26
Nottinghamshire Fire and Rescue Service,100557,NCC Sundry Debtors,NCC Sundry Debtors,Operational Responses,4,202202,30/04/2021,P6,9095331,-457.03,457.03,2205,Window Cleaning,1027,Carlton,15.01
Nottinghamshire Fire and Rescue Service,100557,NCC Sundry Debtors,NCC Sundry Debtors,Operational Responses,4,202202,30/04/2021,P6,9095331,-457.03,457.03,2205,Window Cleaning,1028,East Leake,11.26
Nottinghamshire Fire and Rescue Service,100557,NCC Sundry Debtors,NCC Sundry Debtors,Operational Responses,4,202202,30/04/2021,P6,9095331,-457.03,457.03,2205,Window Cleaning,1029,Highfields Station,37.52
Nottinghamshire Fire and Rescue Service,100557,NCC Sundry Debtors,NCC Sundry Debtors,Management & Support Services,4,202202,30/04/2021,P6,9095331,-457.03,457.03,2205,Window Cleaning,1030,Service Development Centre,13.13
Nottinghamshire Fire and Rescue Service,100557,NCC Sundry Debtors,NCC Sundry Debtors,Management & Support Services,4,202202,30/04/2021,P6,9095331,-457.03,457.03,2205,Window Cleaning,1035,Headquarters,48.77
Nottinghamshire Fire and Rescue Service,103449,CMT Flexibles Limited,CMT Flexibles Limited,Management & Support Services,5,202202,29/04/2021,P6,9095283,-817.2,817.2,3002,Purchase of Vehicle Equipment,2084,Engineering,681
Nottinghamshire Fire and Rescue Service,102364,Woodway Engineering Limited,Woodway Engineering Limited,Management & Support Services,1,202202,11/05/2021,P6,9095455,-1500.35,1500.35,3002,Purchase of Vehicle Equipment,2084,Engineering,1250.29
Nottinghamshire Fire and Rescue Service,100168,Atlas Copco Power Technique,Atlas Copco Power Technique,Management & Support Services,1,202202,24/05/2021,P6,9095703,-1321.74,1321.74,3002,Purchase of Vehicle Equipment,2084,Engineering,1101.45
Nottinghamshire Fire and Rescue Service,104145,Exeros Technologies Limited,Exeros Technologies Limited,Management & Support Services,5,202202,24/05/2021,P6,9095718,-744,744,3002,Purchase of Vehicle Equipment,2084,Engineering,620
Nottinghamshire Fire and Rescue Service,103708,Tangible Solutions Limited,Tangible Solutions Limited,Management & Support Services,5,202202,30/04/2021,P6,9095385,-1617.5,1617.5,3100,Fleet Maintenance - Planned,2084,Engineering,1617.5
Nottinghamshire Fire and Rescue Service,103708,Tangible Solutions Limited,Tangible Solutions Limited,Management & Support Services,5,202202,28/02/2021,P6,9095469,-1220,1220,3100,Fleet Maintenance - Planned,2084,Engineering,1220
Nottinghamshire Fire and Rescue Service,103820,VIA East Midlands Ltd,VIA East Midlands Ltd,Management & Support Services,5,202202,28/04/2021,P6,9095611,-9985.69,9985.69,3100,Fleet Maintenance - Planned,2084,Engineering,8338.25
Nottinghamshire Fire and Rescue Service,103820,VIA East Midlands Ltd,VIA East Midlands Ltd,Management & Support Services,5,202202,06/05/2021,P6,9095612,-11290.49,11290.49,3100,Fleet Maintenance - Planned,2084,Engineering,9417.37
Nottinghamshire Fire and Rescue Service,101100,Angloco Limited,Angloco Limited,Management & Support Services,1,202202,30/05/2020,P6,9095374,-2820.86,2820.86,3102,Vehicle Maintenance Outsourced,2084,Engineering,2350.72
Nottinghamshire Fire and Rescue Service,102228,Keltruck Limited,Keltruck Limited,Management & Support Services,1,202202,30/04/2021,P6,9095553,-945,945,3102,Vehicle Maintenance Outsourced,2084,Engineering,787.5
Nottinghamshire Fire and Rescue Service,599999,Sundry Account Interview Expenses,,Management & Support Services,2,202202,11/05/2021,P6,9095699,-267.96,267.96,3102,Vehicle Maintenance Outsourced,2084,Engineering,223.3
Nottinghamshire Fire and Rescue Service,103820,VIA East Midlands Ltd,VIA East Midlands Ltd,Management & Support Services,5,202202,06/05/2021,P6,9095704,-28764.97,28764.97,3103,Fleet Maintenance - Unplanned,2084,Engineering,23970.81
Nottinghamshire Fire and Rescue Service,103820,VIA East Midlands Ltd,VIA East Midlands Ltd,Management & Support Services,5,202202,28/04/2021,P6,9095707,-20790.88,20790.88,3103,Fleet Maintenance - Unplanned,2084,Engineering,17325.73
Nottinghamshire Fire and Rescue Service,103766,CERTAS,CERTAS,Operational Responses,5,202202,30/04/2021,P6,9095386,-1175.4,1175.4,3200,Fuel - Vehicle,1008,Worksop,979.5
Nottinghamshire Fire and Rescue Service,103766,CERTAS,CERTAS,Operational Responses,5,202202,10/05/2021,P6,9095456,-9737.03,9737.03,3200,Fuel - Vehicle,1019,West Bridgford,8114.19
Nottinghamshire Fire and Rescue Service,103766,CERTAS,CERTAS,Operational Responses,5,202202,26/04/2021,P6,9095527,-1281.19,1281.19,3200,Fuel - Vehicle,1011,Misterton,1067.66
Nottinghamshire Fire and Rescue Service,103766,CERTAS,CERTAS,Operational Responses,5,202202,21/05/2021,P6,9095717,-7250.4,7250.4,3200,Fuel - Vehicle,1006,Edwinstowe,6042
Nottinghamshire Fire and Rescue Service,103766,CERTAS,CERTAS,Operational Responses,5,202202,24/05/2021,P6,9095722,-722.59,722.59,3200,Fuel - Vehicle,1008,Worksop,602.16
Nottinghamshire Fire and Rescue Service,103942,The Lodge Tyre Co. Limited,The Lodge Tyre Co. Limited,Management & Support Services,5,202202,30/04/2021,P6,9095406,-4323.27,4323.27,3202,Tyres,2084,Engineering,3602.74
Nottinghamshire Fire and Rescue Service,100321,Drivercheck Ltd,Drivercheck Ltd,Management & Support Services,1,202202,30/04/2021,P6,9095389,-717.12,717.12,3203,Motor Tax / Licenses,2084,Engineering,597.6
Nottinghamshire Fire and Rescue Service,100202,Enterprise Rent-A-Car,Enterprise Rent-A-Car,Management & Support Services,1,202202,16/02/2021,P6,9095408,-774.98,774.98,3400,Hire of Fleet Vehicles,2084,Engineering,645.82
Nottinghamshire Fire and Rescue Service,100202,Enterprise Rent-A-Car,Enterprise Rent-A-Car,Management & Support Services,1,202202,12/02/2021,P6,9095409,-342.05,342.05,3400,Hire of Fleet Vehicles,2084,Engineering,285.04
Nottinghamshire Fire and Rescue Service,100202,Enterprise Rent-A-Car,Enterprise Rent-A-Car,Management & Support Services,1,202202,14/02/2021,P6,9095410,-544.94,544.94,3400,Hire of Fleet Vehicles,2084,Engineering,454.12
Nottinghamshire Fire and Rescue Service,100202,Enterprise Rent-A-Car,Enterprise Rent-A-Car,Management & Support Services,1,202202,01/03/2021,P6,9095438,-601.2,601.2,3400,Hire of Fleet Vehicles,2084,Engineering,501
Nottinghamshire Fire and Rescue Service,100202,Enterprise Rent-A-Car,Enterprise Rent-A-Car,Management & Support Services,1,202202,09/03/2021,P6,9095440,-342.05,342.05,3400,Hire of Fleet Vehicles,2084,Engineering,285.04
Nottinghamshire Fire and Rescue Service,102070,Life Safety Distribution AG,Life Safety Distribution AG,Management & Support Services,1,202202,30/04/2021,P6,9095368,-563.24,563.24,4000,Operational Equipment Purchase,2084,Engineering,469.37
Nottinghamshire Fire and Rescue Service,101523,Desperate Measures,Desperate Measures,Management & Support Services,1,202202,29/04/2021,P6,9095379,-475.93,475.93,4000,Operational Equipment Purchase,2084,Engineering,396.61
Nottinghamshire Fire and Rescue Service,100428,Clan Tools & Plant Ltd,Clan Tools & Plant Ltd,Management & Support Services,1,202202,07/05/2021,P6,9095432,-597,597,4000,Operational Equipment Purchase,2084,Engineering,497.5
Nottinghamshire Fire and Rescue Service,102532,Safequip Ltd,Safequip Ltd,Management & Support Services,1,202202,14/05/2021,P6,9095566,-312,312,4000,Operational Equipment Purchase,2084,Engineering,260
Nottinghamshire Fire and Rescue Service,102531,Ferno (U K) Limited,Ferno (U K) Limited,Management & Support Services,1,202202,11/05/2021,P6,9095668,-2055.54,2055.54,4000,Operational Equipment Purchase,2084,Engineering,1712.95
Nottinghamshire Fire and Rescue Service,101919,The Heightec Group Ltd,The Heightec Group Ltd,Management & Support Services,1,202202,20/05/2021,P6,9095692,-2979.17,2979.17,4000,Operational Equipment Purchase,2084,Engineering,2482.64
Nottinghamshire Fire and Rescue Service,102531,Ferno (U K) Limited,Ferno (U K) Limited,Management & Support Services,1,202202,25/05/2021,P6,9095741,-1020,1020,4000,Operational Equipment Purchase,2084,Engineering,850
Nottinghamshire Fire and Rescue Service,103981,Joseph Gleave and Son Limited -Joseph Gleave and Son (Holdings) Limited,Joseph Gleave and Son Limited -Joseph Gleave and Son (Holdings) Limited,Management & Support Services,5,202202,21/05/2021,P6,9095743,-250.63,250.63,4000,Operational Equipment Purchase,2084,Engineering,208.86
Nottinghamshire Fire and Rescue Service,104070,Apollo Signs & Engraving,Apollo Signs & Engraving,Management & Support Services,5,202202,18/05/2021,P6,9095749,-1150.56,1150.56,4000,Operational Equipment Purchase,2084,Engineering,958.8
Nottinghamshire Fire and Rescue Service,100437,Nottinghamshire Fire Safety Limited,Nottinghamshire Fire Safety Limited,Operational Responses,1,202202,14/05/2021,P6,9095752,-466.08,466.08,4000,Operational Equipment Purchase,1006,Edwinstowe,20
Nottinghamshire Fire and Rescue Service,100437,Nottinghamshire Fire Safety Limited,Nottinghamshire Fire Safety Limited,Operational Responses,1,202202,14/05/2021,P6,9095752,-466.08,466.08,4000,Operational Equipment Purchase,1006,Edwinstowe,368.4
Nottinghamshire Fire and Rescue Service,102203,Flogas Britian Limited,Flogas Britian Limited,Management & Support Services,1,202202,15/03/2021,P6,9095679,-1173.22,1173.22,4006,Oxygen and Other Gases,2084,Engineering,977.68
Nottinghamshire Fire and Rescue Service,102586,Cfoa (Services) Ltd,Cfoa (Services) Ltd,Management & Support Services,1,202202,26/01/2021,P6,9095555,-3705.6,3705.6,4100,Computer Hardware/ Software,2084,Engineering,3088
Nottinghamshire Fire and Rescue Service,102097,Bt Global Services,Bt Global Services,Management & Support Services,1,202202,12/03/2021,P6,9095363,-1368.12,1368.12,4101,Computer Software Maintenance Contracts,2097,ICT Service Operations,1140.1
Nottinghamshire Fire and Rescue Service,100265,Unit4 Business Software Ltd,Unit4 Business Software Ltd,Management & Support Services,1,202202,25/02/2021,P6,9095373,-20866.32,20866.32,4101,Computer Software Maintenance Contracts,2081,Finance,17388.6
Nottinghamshire Fire and Rescue Service,102215,Performance Monitoring Systems Ltd,Performance Monitoring Systems Ltd,Management & Support Services,1,202202,10/05/2021,P6,9095450,-6930,6930,4101,Computer Software Maintenance Contracts,2095,ICT Digital Transformation,5775
Nottinghamshire Fire and Rescue Service,104113,"Zoom Video Communications, Inc.","Zoom Video Communications, Inc.",Management & Support Services,5,202202,07/05/2021,P6,9095451,-399.75,399.75,4101,Computer Software Maintenance Contracts,2095,ICT Digital Transformation,399.75
Nottinghamshire Fire and Rescue Service,103257,Midland HR,Midland HR,Management & Support Services,5,202202,06/05/2021,P6,9095478,-1248,1248,4101,Computer Software Maintenance Contracts,2095,ICT Digital Transformation,1040
Nottinghamshire Fire and Rescue Service,100545,3TC Software Ltd,3TC Software Ltd,Management & Support Services,1,202202,13/05/2021,P6,9095519,-19656,19656,4101,Computer Software Maintenance Contracts,2095,ICT Digital Transformation,16380
Nottinghamshire Fire and Rescue Service,103257,Midland HR,Midland HR,Management & Support Services,5,202202,29/03/2021,P6,9095539,-10659,10659,4101,Computer Software Maintenance Contracts,2049,Professional Support,282.75
Nottinghamshire Fire and Rescue Service,103257,Midland HR,Midland HR,Management & Support Services,5,202202,29/03/2021,P6,9095539,-10659,10659,4101,Computer Software Maintenance Contracts,2049,Professional Support,8599.75
Nottinghamshire Fire and Rescue Service,103873,New Media Warehouse Limited T/A synergy Learning,New Media Warehouse Limited T/A synergy Learning,Management & Support Services,5,202202,18/05/2021,P6,9095562,-15417.6,15417.6,4101,Computer Software Maintenance Contracts,2095,ICT Digital Transformation,12848
Nottinghamshire Fire and Rescue Service,103871,Zoho Corporation Private Limited,Zoho Corporation Private Limited,Management & Support Services,5,202202,18/05/2021,P6,9095563,-2657,2657,4101,Computer Software Maintenance Contracts,2095,ICT Digital Transformation,2657
Nottinghamshire Fire and Rescue Service,102097,Bt Global Services,Bt Global Services,Management & Support Services,1,202202,17/05/2021,P6,9095695,-1368.12,1368.12,4101,Computer Software Maintenance Contracts,2097,ICT Service Operations,1140.1
Nottinghamshire Fire and Rescue Service,103373,GTT (Interoute/Easynet),GTT (Interoute/Easynet),Management & Support Services,5,202202,25/04/2021,P6,9095705,-12150.85,12150.85,4101,Computer Software Maintenance Contracts,2095,ICT Digital Transformation,10125.71
Nottinghamshire Fire and Rescue Service,103483,Risual Limited,Risual Limited,Management & Support Services,5,202202,30/04/2021,P6,9095360,-1020,1020,4104,Non-Contracted Services - ICT,2095,ICT Digital Transformation,850
Nottinghamshire Fire and Rescue Service,102280,Amptron Electrical Services,Amptron Electrical Services,Management & Support Services,1,202202,26/03/2021,P6,9095447,-814.15,814.15,4104,Non-Contracted Services - ICT,2097,ICT Service Operations,678.46
Nottinghamshire Fire and Rescue Service,102103,Ricoh Uk Ltd,Ricoh Uk Ltd,Management & Support Services,1,202202,12/04/2021,P6,9095441,-10399.48,10399.48,4105,Photocopier,2095,ICT Digital Transformation,8666.23
Nottinghamshire Fire and Rescue Service,103483,Risual Limited,Risual Limited,Management & Support Services,5,202202,29/04/2021,P6,9095318,-2177.29,2177.29,4301,Phones - Landline,2097,ICT Service Operations,1814.41
Nottinghamshire Fire and Rescue Service,102420,BT PLC,BT PLC,Management & Support Services,1,202202,08/05/2021,P6,9095536,-326.81,326.81,4301,Phones - Landline,2097,ICT Service Operations,272.34
Nottinghamshire Fire and Rescue Service,103092,Daisy Corporate Services Trading Limited,Daisy Corporate Services Trading Limited,Management & Support Services,1,202202,01/05/2021,P6,9095538,-1264.85,1264.85,4301,Phones - Landline,2096,ICT Service Transformation,1054.04
Nottinghamshire Fire and Rescue Service,103483,Risual Limited,Risual Limited,Management & Support Services,5,202202,19/05/2021,P6,9095696,-2176.7,2176.7,4301,Phones - Landline,2097,ICT Service Operations,1813.92
Nottinghamshire Fire and Rescue Service,104009,Systel,Systel,Management & Support Services,5,202202,12/05/2021,P6,9095596,-9756.74,9756.74,4303,Pagers,2097,ICT Service Operations,9756.74
Nottinghamshire Fire and Rescue Service,103887,PageOne Communications Limited - Part Of Capita plc,PageOne Communications Limited - Part Of Capita plc,Management & Support Services,5,202202,19/05/2021,P6,9095708,-5014.8,5014.8,4303,Pagers,2097,ICT Service Operations,4179
Nottinghamshire Fire and Rescue Service,100369,Boddingtons Electrical Limited,Boddingtons Electrical Limited,Management & Support Services,1,202202,27/04/2021,P6,9095756,-1459.3,1459.3,4402,Uniform and Protectice Clothing Repairs,2086,Procurement,1216.08
Nottinghamshire Fire and Rescue Service,103207,G. M. Services (Leicester) Limited,G. M. Services (Leicester) Limited,Management & Support Services,5,202202,28/01/2021,P6,9095697,-1311.6,1311.6,4511,Fitness Equipment Maintenance,2061,Occupational Health & Fitness,1093
Nottinghamshire Fire and Rescue Service,104144,Sportsafe UK Limited (Abeo),Sportsafe UK Limited (Abeo),Management & Support Services,5,202202,13/05/2021,P6,9095755,-479.61,479.61,4511,Fitness Equipment Maintenance,2061,Occupational Health & Fitness,399.68
Nottinghamshire Fire and Rescue Service,104144,Sportsafe UK Limited (Abeo),Sportsafe UK Limited (Abeo),Operational Responses,5,202202,13/05/2021,P6,9095757,-555.74,555.74,4511,Fitness Equipment Maintenance,1023,Stapleford,463.12
Nottinghamshire Fire and Rescue Service,103207,G. M. Services (Leicester) Limited,G. M. Services (Leicester) Limited,Management & Support Services,5,202202,24/05/2021,P6,9095694,918,-918,4511,Fitness Equipment Maintenance,2061,Occupational Health & Fitness,-765
Nottinghamshire Fire and Rescue Service,103358,JSMTC (Joint Service Mountain Training Centre),JSMTC (Joint Service Mountain Training Centre),Management & Support Services,5,202202,29/04/2021,P6,9095435,-348.6,348.6,4523,Catering/Food & Beverages,2059,Corporate Training,290.5
Nottinghamshire Fire and Rescue Service,103695,Pulp Friction Smoothie Bar CIC,Pulp Friction Smoothie Bar CIC,Management & Support Services,5,202202,12/05/2021,P6,9095442,-1200,1200,4523,Catering/Food & Beverages,2059,Corporate Training,1200
Nottinghamshire Fire and Rescue Service,101851,Irongate Group Ltd,Irongate Group Ltd,Management & Support Services,1,202202,28/04/2021,P6,9095405,-312.12,312.12,4530,Printing,2068,Prevention,260.1
Nottinghamshire Fire and Rescue Service,101851,Irongate Group Ltd,Irongate Group Ltd,Operational Responses,1,202202,28/04/2021,P6,9095399,-260.42,260.42,4532,Stationery,1027,Carlton,217.02
Nottinghamshire Fire and Rescue Service,103843,Quadient UK Limited,Quadient UK Limited,Management & Support Services,5,202202,12/04/2021,P6,9095382,-303.07,303.07,4533,Postage,2055,Admin Hub Central,252.56
Nottinghamshire Fire and Rescue Service,100423,Royal Mail (Bacs),Royal Mail (Bacs),Management & Support Services,1,202202,12/04/2021,P6,9095483,-944.4,944.4,4533,Postage,2055,Admin Hub Central,787
Nottinghamshire Fire and Rescue Service,102078,Thomas Kneale & Co Ltd,Thomas Kneale & Co Ltd,Management & Support Services,1,202202,21/04/2021,P6,9095287,-600.48,600.48,4534,Carriage and Packaging,2086,Procurement,19.5
Nottinghamshire Fire and Rescue Service,102309,Walter Frank & Sons Limited,Walter Frank & Sons Limited,Management & Support Services,1,202202,12/05/2021,P6,9095476,-1661.76,1661.76,4534,Carriage and Packaging,2086,Procurement,52.5
Nottinghamshire Fire and Rescue Service,102306,Northern Diver (International) Ltd,Northern Diver (International) Ltd,Management & Support Services,1,202202,07/05/2021,P6,9095573,-541.8,541.8,4534,Carriage and Packaging,2086,Procurement,10.5
Nottinghamshire Fire and Rescue Service,103589,Hot Pack International,Hot Pack International,Management & Support Services,5,202202,11/05/2021,P6,9095599,-495.12,495.12,4534,Carriage and Packaging,2086,Procurement,27
Nottinghamshire Fire and Rescue Service,102078,Thomas Kneale & Co Ltd,Thomas Kneale & Co Ltd,Management & Support Services,1,202202,20/05/2021,P6,9095720,-710.4,710.4,4534,Carriage and Packaging,2086,Procurement,19.5
Nottinghamshire Fire and Rescue Service,104160,Bloom Procurement Services Ltd,Bloom Procurement Services Ltd,Management & Support Services,5,202202,13/04/2021,P6,9095285,-48000,48000,4554,Consultancy Fees - Non Estates Related,2066,Information Services,40000
Nottinghamshire Fire and Rescue Service,100265,Unit4 Business Software Ltd,Unit4 Business Software Ltd,Management & Support Services,1,202202,26/11/2020,P6,9095376,-4679.93,4679.93,4554,Consultancy Fees - Non Estates Related,2081,Finance,3899.94
Nottinghamshire Fire and Rescue Service,103257,Midland HR,Midland HR,Management & Support Services,5,202202,26/04/2021,P6,9095496,-3888,3888,4554,Consultancy Fees - Non Estates Related,2082,Payroll,3240
Nottinghamshire Fire and Rescue Service,102033,Valuation Office Agency,Valuation Office Agency,Management & Support Services,1,202202,28/04/2021,P6,9095683,-732.66,732.66,4554,Consultancy Fees - Non Estates Related,2086,Procurement,610.55
Nottinghamshire Fire and Rescue Service,101972,HQ - Petty Cash Account,HQ - Petty Cash Account,Management & Support Services,6,202202,31/03/2021,P6,9095294,-1202.96,1202.96,4560,Subsistence,1035,Headquarters,1202.96
Nottinghamshire Fire and Rescue Service,101780,Improvement & Development Agency For Local Government,Improvement & Development Agency For Local Government,Management & Support Services,1,202202,11/03/2021,P6,9095546,-563.72,563.72,4581,Subscriptions,1086,Corporate Core,469.77
Nottinghamshire Fire and Rescue Service,101780,Improvement & Development Agency For Local Government,Improvement & Development Agency For Local Government,Management & Support Services,1,202202,14/05/2021,P6,9095682,-7033.24,7033.24,4581,Subscriptions,1086,Corporate Core,5861.03
Nottinghamshire Fire and Rescue Service,104143,The Myers Briggs Company,The Myers Briggs Company,Management & Support Services,5,202202,25/05/2021,P6,9095706,-270,270,4582,Reference Books and Publications,2054,Equalities Team,225
Nottinghamshire Fire and Rescue Service,102280,Amptron Electrical Services,Amptron Electrical Services,Operational Responses,1,202202,09/03/2021,P6,9095515,-4258.03,4258.03,4591,Fire Precaution Maintenance,1002,Blidworth,73.21
Nottinghamshire Fire and Rescue Service,102280,Amptron Electrical Services,Amptron Electrical Services,Operational Responses,1,202202,09/03/2021,P6,9095515,-4258.03,4258.03,4591,Fire Precaution Maintenance,1005,Ashfield,269.28
Nottinghamshire Fire and Rescue Service,102280,Amptron Electrical Services,Amptron Electrical Services,Operational Responses,1,202202,09/03/2021,P6,9095515,-4258.03,4258.03,4591,Fire Precaution Maintenance,1006,Edwinstowe,73.21
Nottinghamshire Fire and Rescue Service,102280,Amptron Electrical Services,Amptron Electrical Services,Operational Responses,1,202202,09/03/2021,P6,9095515,-4258.03,4258.03,4591,Fire Precaution Maintenance,1010,Harworth,36.91
Nottinghamshire Fire and Rescue Service,102280,Amptron Electrical Services,Amptron Electrical Services,Operational Responses,1,202202,09/03/2021,P6,9095515,-4258.03,4258.03,4591,Fire Precaution Maintenance,1011,Misterton,223.17
Nottinghamshire Fire and Rescue Service,102280,Amptron Electrical Services,Amptron Electrical Services,Operational Responses,1,202202,09/03/2021,P6,9095515,-4258.03,4258.03,4591,Fire Precaution Maintenance,1012,Retford,160.52
Nottinghamshire Fire and Rescue Service,102280,Amptron Electrical Services,Amptron Electrical Services,Operational Responses,1,202202,09/03/2021,P6,9095515,-4258.03,4258.03,4591,Fire Precaution Maintenance,1013,Tuxford,296.18
Nottinghamshire Fire and Rescue Service,102280,Amptron Electrical Services,Amptron Electrical Services,Operational Responses,1,202202,09/03/2021,P6,9095515,-4258.03,4258.03,4591,Fire Precaution Maintenance,1014,Southwell,30.69
Nottinghamshire Fire and Rescue Service,102280,Amptron Electrical Services,Amptron Electrical Services,Operational Responses,1,202202,09/03/2021,P6,9095515,-4258.03,4258.03,4591,Fire Precaution Maintenance,1016,Newark,88.06
Nottinghamshire Fire and Rescue Service,102280,Amptron Electrical Services,Amptron Electrical Services,Operational Responses,1,202202,09/03/2021,P6,9095515,-4258.03,4258.03,4591,Fire Precaution Maintenance,1017,Bingham,162.72
Nottinghamshire Fire and Rescue Service,102280,Amptron Electrical Services,Amptron Electrical Services,Operational Responses,1,202202,09/03/2021,P6,9095515,-4258.03,4258.03,4591,Fire Precaution Maintenance,1019,West Bridgford,335.18
Nottinghamshire Fire and Rescue Service,102280,Amptron Electrical Services,Amptron Electrical Services,Operational Responses,1,202202,09/03/2021,P6,9095515,-4258.03,4258.03,4591,Fire Precaution Maintenance,1020,Stockhill,160.55
Nottinghamshire Fire and Rescue Service,102280,Amptron Electrical Services,Amptron Electrical Services,Operational Responses,1,202202,09/03/2021,P6,9095515,-4258.03,4258.03,4591,Fire Precaution Maintenance,1023,Stapleford,83.93
Nottinghamshire Fire and Rescue Service,102280,Amptron Electrical Services,Amptron Electrical Services,Operational Responses,1,202202,09/03/2021,P6,9095515,-4258.03,4258.03,4591,Fire Precaution Maintenance,1024,Eastwood,56.76
Nottinghamshire Fire and Rescue Service,102280,Amptron Electrical Services,Amptron Electrical Services,Operational Responses,1,202202,09/03/2021,P6,9095515,-4258.03,4258.03,4591,Fire Precaution Maintenance,1026,Arnold,161
Nottinghamshire Fire and Rescue Service,102280,Amptron Electrical Services,Amptron Electrical Services,Operational Responses,1,202202,09/03/2021,P6,9095515,-4258.03,4258.03,4591,Fire Precaution Maintenance,1027,Carlton,622.11
Nottinghamshire Fire and Rescue Service,102280,Amptron Electrical Services,Amptron Electrical Services,Operational Responses,1,202202,09/03/2021,P6,9095515,-4258.03,4258.03,4591,Fire Precaution Maintenance,1028,East Leake,91.09
Nottinghamshire Fire and Rescue Service,102280,Amptron Electrical Services,Amptron Electrical Services,Operational Responses,1,202202,09/03/2021,P6,9095515,-4258.03,4258.03,4591,Fire Precaution Maintenance,1029,Highfields Station,623.79
Nottinghamshire Fire and Rescue Service,102073,B D Motor Spares,B D Motor Spares,Operational Responses,1,202202,07/05/2021,P6,9095437,-3168,3168,4594,Training/ Teaching Equipment,1006,Edwinstowe,220
Nottinghamshire Fire and Rescue Service,102073,B D Motor Spares,B D Motor Spares,Operational Responses,1,202202,07/05/2021,P6,9095437,-3168,3168,4594,Training/ Teaching Equipment,1006,Edwinstowe,440
Nottinghamshire Fire and Rescue Service,102073,B D Motor Spares,B D Motor Spares,Operational Responses,1,202202,07/05/2021,P6,9095437,-3168,3168,4594,Training/ Teaching Equipment,1008,Worksop,220
Nottinghamshire Fire and Rescue Service,102073,B D Motor Spares,B D Motor Spares,Operational Responses,1,202202,07/05/2021,P6,9095437,-3168,3168,4594,Training/ Teaching Equipment,1010,Harworth,440
Nottinghamshire Fire and Rescue Service,102073,B D Motor Spares,B D Motor Spares,Operational Responses,1,202202,07/05/2021,P6,9095437,-3168,3168,4594,Training/ Teaching Equipment,1013,Tuxford,440
Nottinghamshire Fire and Rescue Service,102073,B D Motor Spares,B D Motor Spares,Operational Responses,1,202202,07/05/2021,P6,9095437,-3168,3168,4594,Training/ Teaching Equipment,1014,Southwell,440
Nottinghamshire Fire and Rescue Service,102073,B D Motor Spares,B D Motor Spares,Operational Responses,1,202202,07/05/2021,P6,9095437,-3168,3168,4594,Training/ Teaching Equipment,1026,Arnold,220
Nottinghamshire Fire and Rescue Service,102073,B D Motor Spares,B D Motor Spares,Management & Support Services,1,202202,07/05/2021,P6,9095437,-3168,3168,4594,Training/ Teaching Equipment,2059,Corporate Training,220
Nottinghamshire Fire and Rescue Service,102107,Bits At Micks,Bits At Micks,Operational Responses,1,202202,24/05/2021,P6,9095740,-1425.6,1425.6,4594,Training/ Teaching Equipment,1003,London Road,396
Nottinghamshire Fire and Rescue Service,102107,Bits At Micks,Bits At Micks,Operational Responses,1,202202,24/05/2021,P6,9095740,-1425.6,1425.6,4594,Training/ Teaching Equipment,1020,Stockhill,198
Nottinghamshire Fire and Rescue Service,102107,Bits At Micks,Bits At Micks,Operational Responses,1,202202,24/05/2021,P6,9095740,-1425.6,1425.6,4594,Training/ Teaching Equipment,1027,Carlton,396
Nottinghamshire Fire and Rescue Service,102107,Bits At Micks,Bits At Micks,Operational Responses,1,202202,24/05/2021,P6,9095740,-1425.6,1425.6,4594,Training/ Teaching Equipment,1029,Highfields Station,198
Nottinghamshire Fire and Rescue Service,103849,Vision Support Services Ltd,Vision Support Services Ltd,Operational Responses,5,202202,18/03/2021,P6,9095445,-305.88,305.88,4600,Community Safety Delivery Consumables,1012,Retford,254.9
Nottinghamshire Fire and Rescue Service,103849,Vision Support Services Ltd,Vision Support Services Ltd,Operational Responses,5,202202,31/03/2021,P6,9095446,-318.78,318.78,4600,Community Safety Delivery Consumables,1005,Ashfield,265.65
Nottinghamshire Fire and Rescue Service,103849,Vision Support Services Ltd,Vision Support Services Ltd,Management & Support Services,5,202202,11/05/2021,P6,9095558,-305.88,305.88,4600,Community Safety Delivery Consumables,2068,Prevention,254.9
Nottinghamshire Fire and Rescue Service,101987,Mansfield District Council (Finance),Mansfield District Council (Finance),Management & Support Services,4,202202,16/03/2021,P6,9095394,-3000,3000,4621,Contribution to Partnership Working,2068,Prevention,2500
Nottinghamshire Fire and Rescue Service,100856,Arthur J Gallagher,Arthur J Gallagher,Management & Support Services,1,202202,28/04/2021,P6,9095525,-8564.64,8564.64,4890,Insurance - Other Premiums,2063,Risk Management & Insurance,8564.64
Nottinghamshire Fire and Rescue Service,100856,Arthur J Gallagher,Arthur J Gallagher,Management & Support Services,1,202202,28/04/2021,P6,9095526,-4442.82,4442.82,4890,Insurance - Other Premiums,2063,Risk Management & Insurance,4442.82
Nottinghamshire Fire and Rescue Service,100779,Local Government Association,Local Government Association,Management & Support Services,1,202202,25/03/2021,P6,9095598,-2604.91,2604.91,7002,Legal Services,2049,Professional Support,2170.76
Nottinghamshire Fire and Rescue Service,101947,Mercer Human Resource Consulting Ltd,Mercer Human Resource Consulting Ltd,Management & Support Services,1,202202,20/05/2021,P6,9095604,-7044,7044,7500,Treasury Services,2081,Finance,5870
Nottinghamshire Fire and Rescue Service,100055,Nottingham City Council,Nottingham City Council,Management & Support Services,4,202202,11/03/2021,P6,9095533,-48892.64,48892.64,7501,Committee Services,2093,Command Suite,40743.87
Nottinghamshire Fire and Rescue Service,102874,NCC Pension Fund,NCC Pension Fund,Management & Support Services,1,202202,29/03/2021,P6,9095670,-720,720,7502,External Audit Fees,1089,Pension Costs met from Revenue,600
Nottinghamshire Fire and Rescue Service,102078,Thomas Kneale & Co Ltd,Thomas Kneale & Co Ltd,Management & Support Services,1,202202,21/04/2021,P6,9095287,-600.48,600.48,B314,Stock,9999,Default,480.9
Nottinghamshire Fire and Rescue Service,102376,Bristol Uniforms Limited,Bristol Uniforms Limited,Management & Support Services,1,202202,26/04/2021,P6,9095328,-5140.8,5140.8,B314,Stock,9999,Default,4284
Nottinghamshire Fire and Rescue Service,102376,Bristol Uniforms Limited,Bristol Uniforms Limited,Management & Support Services,1,202202,30/04/2021,P6,9095370,-1509.02,1509.02,B314,Stock,9999,Default,1257.52
Nottinghamshire Fire and Rescue Service,102376,Bristol Uniforms Limited,Bristol Uniforms Limited,Management & Support Services,1,202202,30/04/2021,P6,9095371,-1509.02,1509.02,B314,Stock,9999,Default,1257.52
Nottinghamshire Fire and Rescue Service,102309,Walter Frank & Sons Limited,Walter Frank & Sons Limited,Management & Support Services,1,202202,12/05/2021,P6,9095476,-1661.76,1661.76,B314,Stock,9999,Default,1332.3
Nottinghamshire Fire and Rescue Service,102218,Kays Medical Ltd,Kays Medical Ltd,Management & Support Services,5,202202,12/05/2021,P6,9095524,-706.01,706.01,B314,Stock,9999,Default,588.34
Nottinghamshire Fire and Rescue Service,100299,FireAngel Safety Technology Limited,FireAngel Safety Technology Limited,Management & Support Services,1,202202,01/05/2021,P6,9095560,-3600,3600,B314,Stock,9999,Default,3000
Nottinghamshire Fire and Rescue Service,102603,Yorkshire Purchasing Organisation,Yorkshire Purchasing Organisation,Management & Support Services,1,202202,14/05/2021,P6,9095568,-394.8,394.8,B314,Stock,9999,Default,329
Nottinghamshire Fire and Rescue Service,102306,Northern Diver (International) Ltd,Northern Diver (International) Ltd,Management & Support Services,1,202202,07/05/2021,P6,9095573,-541.8,541.8,B314,Stock,9999,Default,441
Nottinghamshire Fire and Rescue Service,102376,Bristol Uniforms Limited,Bristol Uniforms Limited,Management & Support Services,1,202202,11/05/2021,P6,9095574,-2735.57,2735.57,B314,Stock,9999,Default,2279.64
Nottinghamshire Fire and Rescue Service,102864,William Sugden & sons Limited,William Sugden & sons Limited,Management & Support Services,5,202202,22/01/2021,P6,9095576,-516.6,516.6,B314,Stock,9999,Default,430.5
Nottinghamshire Fire and Rescue Service,102218,Kays Medical Ltd,Kays Medical Ltd,Management & Support Services,5,202202,14/05/2021,P6,9095583,-262.49,262.49,B314,Stock,9999,Default,218.74
Nottinghamshire Fire and Rescue Service,103589,Hot Pack International,Hot Pack International,Management & Support Services,5,202202,11/05/2021,P6,9095599,-495.12,495.12,B314,Stock,9999,Default,462.72
Nottinghamshire Fire and Rescue Service,103242,New Balance Athletic Shoes (UK) Limited,New Balance Athletic Shoes (UK) Limited,Management & Support Services,5,202202,14/05/2021,P6,9095603,-343.8,343.8,B314,Stock,9999,Default,286.5
Nottinghamshire Fire and Rescue Service,102376,Bristol Uniforms Limited,Bristol Uniforms Limited,Management & Support Services,1,202202,14/05/2021,P6,9095609,-4999.1,4999.1,B314,Stock,9999,Default,4165.92
Nottinghamshire Fire and Rescue Service,102218,Kays Medical Ltd,Kays Medical Ltd,Management & Support Services,5,202202,24/05/2021,P6,9095701,-409.5,409.5,B314,Stock,9999,Default,341.25
Nottinghamshire Fire and Rescue Service,102190,Dot Promotional Clothing,Dot Promotional Clothing,Management & Support Services,1,202202,24/05/2021,P6,9095710,-1566,1566,B314,Stock,9999,Default,1305
Nottinghamshire Fire and Rescue Service,102078,Thomas Kneale & Co Ltd,Thomas Kneale & Co Ltd,Management & Support Services,1,202202,20/05/2021,P6,9095720,-710.4,710.4,B314,Stock,9999,Default,572.5
Nottinghamshire Fire and Rescue Service,100299,FireAngel Safety Technology Limited,FireAngel Safety Technology Limited,Management & Support Services,1,202202,18/05/2021,P6,9095731,-6300,6300,B314,Stock,9999,Default,5250
Nottinghamshire Fire and Rescue Service,103981,Joseph Gleave and Son Limited -Joseph Gleave and Son (Holdings) Limited,Joseph Gleave and Son Limited -Joseph Gleave and Son (Holdings) Limited,Management & Support Services,5,202202,21/05/2021,P6,9095733,-423.17,423.17,B314,Stock,9999,Default,352.64
Nottinghamshire Fire and Rescue Service,103981,Joseph Gleave and Son Limited -Joseph Gleave and Son (Holdings) Limited,Joseph Gleave and Son Limited -Joseph Gleave and Son (Holdings) Limited,Management & Support Services,5,202202,21/05/2021,P6,9095734,-343.87,343.87,B314,Stock,9999,Default,286.56
Nottinghamshire Fire and Rescue Service,103981,Joseph Gleave and Son Limited -Joseph Gleave and Son (Holdings) Limited,Joseph Gleave and Son Limited -Joseph Gleave and Son (Holdings) Limited,Management & Support Services,5,202202,21/05/2021,P6,9095736,-298.13,298.13,B314,Stock,9999,Default,248.44
Nottinghamshire Fire and Rescue Service,102376,Bristol Uniforms Limited,Bristol Uniforms Limited,Management & Support Services,1,202202,25/05/2021,P6,9095750,-971.04,971.04,B314,Stock,9999,Default,809.2
Nottinghamshire Fire and Rescue Service,103981,Joseph Gleave and Son Limited -Joseph Gleave and Son (Holdings) Limited,Joseph Gleave and Son Limited -Joseph Gleave and Son (Holdings) Limited,Management & Support Services,5,202202,05/11/2020,P6,9095550,4003.2,-4003.2,B314,Stock,9999,Default,-3336
Nottinghamshire Fire and Rescue Service,104000,Bristol Street Motors / Vertu Motors PLC,Bristol Street Motors / Vertu Motors PLC,Management & Support Services,5,202202,18/05/2021,P6,9095565,-19470.56,19470.56,C001,Vehicle Purchase,2084,Engineering,15480.04
Nottinghamshire Fire and Rescue Service,101858,Ford Motor Company Ltd,Ford Motor Company Ltd,Management & Support Services,1,202202,21/04/2021,P6,9095671,-16940.57,16940.57,C001,Vehicle Purchase,2084,Engineering,14126.31
Nottinghamshire Fire and Rescue Service,101858,Ford Motor Company Ltd,Ford Motor Company Ltd,Management & Support Services,1,202202,19/05/2021,P6,9095672,-18500.61,18500.61,C001,Vehicle Purchase,2084,Engineering,15426.34
Nottinghamshire Fire and Rescue Service,101858,Ford Motor Company Ltd,Ford Motor Company Ltd,Management & Support Services,1,202202,21/04/2021,P6,9095673,-16940.57,16940.57,C001,Vehicle Purchase,2084,Engineering,14126.31
Nottinghamshire Fire and Rescue Service,101858,Ford Motor Company Ltd,Ford Motor Company Ltd,Management & Support Services,1,202202,21/04/2021,P6,9095674,-16940.57,16940.57,C001,Vehicle Purchase,2084,Engineering,14126.31
Nottinghamshire Fire and Rescue Service,101858,Ford Motor Company Ltd,Ford Motor Company Ltd,Management & Support Services,1,202202,21/04/2021,P6,9095675,-16940.57,16940.57,C001,Vehicle Purchase,2084,Engineering,14126.31
Nottinghamshire Fire and Rescue Service,101858,Ford Motor Company Ltd,Ford Motor Company Ltd,Management & Support Services,1,202202,21/04/2021,P6,9095676,-16940.57,16940.57,C001,Vehicle Purchase,2084,Engineering,14126.31
Nottinghamshire Fire and Rescue Service,101858,Ford Motor Company Ltd,Ford Motor Company Ltd,Management & Support Services,1,202202,21/04/2021,P6,9095677,-16940.57,16940.57,C001,Vehicle Purchase,2084,Engineering,14126.31
Nottinghamshire Fire and Rescue Service,101858,Ford Motor Company Ltd,Ford Motor Company Ltd,Management & Support Services,1,202202,21/04/2021,P6,9095678,-16940.57,16940.57,C001,Vehicle Purchase,2084,Engineering,14126.31
Nottinghamshire Fire and Rescue Service,101858,Ford Motor Company Ltd,Ford Motor Company Ltd,Management & Support Services,1,202202,21/04/2021,P6,9095698,-16940.57,16940.57,C001,Vehicle Purchase,2084,Engineering,14126.31
Nottinghamshire Fire and Rescue Service,102757,Turner and Townsend Project Management,Turner and Townsend Project Management,Management & Support Services,5,202202,24/05/2021,P6,9095739,-15426.4,15426.4,C150,Professional Fees - Architects,4102,Strategic New Build Projects,12855.33
Nottinghamshire Fire and Rescue Service,102660,Jigsaw Systems Limited,Jigsaw Systems Limited,Management & Support Services,5,202202,04/05/2021,P6,9095449,-3035.84,3035.84,C200,Hardware,4300,ICT Capital Programme,2529.87
Nottinghamshire Fire and Rescue Service,103483,Risual Limited,Risual Limited,Management & Support Services,5,202202,23/04/2021,P6,9095289,-1020,1020,C202,Consultancy and Services,4300,ICT Capital Programme,850
Nottinghamshire Fire and Rescue Service,103483,Risual Limited,Risual Limited,Management & Support Services,5,202202,30/04/2021,P6,9095372,-2040,2040,C202,Consultancy and Services,4300,ICT Capital Programme,1700
Nottinghamshire Fire and Rescue Service,103185,Concerto Support Services Limited,Concerto Support Services Limited,Management & Support Services,5,202202,30/04/2021,P6,9095467,-2160,2160,C202,Consultancy and Services,4300,ICT Capital Programme,1800
Nottinghamshire Fire and Rescue Service,103483,Risual Limited,Risual Limited,Management & Support Services,5,202202,05/03/2021,P6,9095572,-1020,1020,C202,Consultancy and Services,4300,ICT Capital Programme,850
Nottinghamshire Fire and Rescue Service,103866,Richardson Associates (UK) Limited,Richardson Associates (UK) Limited,Management & Support Services,5,202202,26/05/2021,P6,9095751,-3600,3600,C202,Consultancy and Services,2054,Equalities Team,3000
Nottinghamshire Fire and Rescue Service,103483,Risual Limited,Risual Limited,Management & Support Services,5,202202,30/04/2021,P6,9095317,480,-480,C202,Consultancy and Services,4300,ICT Capital Programme,-400
,***Note:,,,,,,,,,,,,,,,
,"***The report shows the payment in its original form. This means disaggregating many invoices into individual component payments many of which will be less than £250 in their own right. This explains why you will see many of the amounts showing less than £250. They were, however, paid as part of an invoice of £250 or more.

**** The Invoice date is the date issued on the invoice. This date may fall out of the date range for the report. In most cases this is due to the invoice being received  late.",,,,,,,,,,,,,,,